Workbook

Sheet 2013
A1: Water Meter Readings
A2: Juneau County
A3: Rest Area #10
G4: Est. waste contrib/Veh | H4: 0.2908497355 | I4: gal/veh | J4: See RA 13 analysis
B6: Day of Week | D6: Meter Reading (gal) | E6: H2O Use | G6: Traffic | I6: Waste Contrib | J6: Est Total
A7: 2013-06-01
A8: 2013-06-01 | B8: 2013-06-01 | D8: 3468000 | E8: =+D9-D8 -> 2400 | G8: 1169 | I8: =+G8*$H$4 -> 340.0033408 | J8: =+I8+E8 -> 2740.003341 | K8: =+J38 -> 3356.995574
A9: 2013-06-02 | B9: 2013-06-02 | D9: 3470400 | E9: =+D10-D9 -> 3100 | G9: 1274 | I9: =+G9*$H$4 -> 370.542563 | J9: =+I9+E9 -> 3470.542563
A10: 2013-06-03 | B10: 2013-06-03 | D10: 3473500 | E10: 2100 | G10: 1138 | I10: 330.986999 | J10: 2430.986999
A11: 2013-06-04 | B11: 2013-06-04 | D11: 3475600 | E11: 1800 | G11: 1004 | I11: 292.0131344 | J11: 2092.013134
A12: 2013-06-05 | B12: 2013-06-05 | D12: 3477400 | E12: 2000 | G12: 1027 | I12: 298.7026784 | J12: 2298.702678
A13: 2013-06-06 | B13: 2013-06-06 | D13: 3479400 | E13: 2900 | G13: 1274 | I13: 370.542563 | J13: 3270.542563
A14: 2013-06-07 | B14: 2013-06-07 | D14: 3482300 | E14: 3000 | G14: 1507 | I14: 438.3105514 | J14: 3438.310551
A15: 2013-06-08 | B15: 2013-06-08 | D15: 3485300 | E15: 3100 | G15: 1195 | I15: 347.5654339 | J15: 3447.565434
A16: 2013-06-09 | B16: 2013-06-09 | D16: 3488400 | E16: 3600 | G16: 1279 | I16: 371.9968117 | J16: 3971.996812
A17: 2013-06-10 | B17: 2013-06-10 | D17: 3492000 | E17: 2600 | G17: 1231 | I17: 358.0360244 | J17: 2958.036024
A18: 2013-06-11 | B18: 2013-06-11 | D18: 3494600 | E18: 2000 | G18: 1191 | I18: 346.402035 | J18: 2346.402035
A19: 2013-06-12 | B19: 2013-06-12 | D19: 3496600 | E19: 2000 | G19: 1086 | I19: 315.8628128 | J19: 2315.862813
A20: 2013-06-13 | B20: 2013-06-13 | D20: 3498600 | E20: 2800 | G20: 1266 | I20: 368.2157651 | J20: 3168.215765
A21: 2013-06-14 | B21: 2013-06-14 | D21: 3501400 | E21: 3600 | G21: 1593 | I21: 463.3236287 | J21: 4063.323629
A22: 2013-06-15 | B22: 2013-06-15 | D22: 3505000 | E22: 3700 | G22: 1342 | I22: 390.320345 | J22: 4090.320345
A23: 2013-06-16 | B23: 2013-06-16 | D23: 3508700 | E23: 3900 | G23: 1414 | I23: 411.261526 | J23: 4311.261526
A24: 2013-06-17 | B24: 2013-06-17 | D24: 3512600 | E24: 2600 | G24: 1269 | I24: 369.0883144 | J24: 2969.088314
A25: 2013-06-18 | B25: 2013-06-18 | D25: 3515200 | E25: 2400 | G25: 1165 | I25: 338.8399419 | J25: 2738.839942
A26: 2013-06-19 | B26: 2013-06-19 | D26: 3517600 | E26: 2600 | G26: 1322 | I26: 384.5033503 | J26: 2984.50335
A27: 2013-06-20 | B27: 2013-06-20 | D27: 3520200 | E27: 2800 | G27: 1285 | I27: 373.7419101 | J27: 3173.74191
A28: 2013-06-21 | B28: 2013-06-21 | D28: 3523000 | E28: 3900 | G28: 1747 | I28: 508.1144879 | J28: 4408.114488
A29: 2013-06-22 | B29: 2013-06-22 | D29: 3526900 | E29: 3400 | G29: 1454 | I29: 422.8955154 | J29: 3822.895515
A30: 2013-06-23 | B30: 2013-06-23 | D30: 3530300 | E30: 4200 | G30: 1565 | I30: 455.1798361 | J30: 4655.179836
A31: 2013-06-24 | B31: 2013-06-24 | D31: 3534500 | E31: 3000 | G31: 1247 | I31: 362.6896202 | J31: 3362.68962
A32: 2013-06-25 | B32: 2013-06-25 | D32: 3537500 | E32: 2100 | G32: 1110 | I32: 322.8432064 | J32: 2422.843206
A33: 2013-06-26 | B33: 2013-06-26 | D33: 3539600 | E33: 2500 | G33: 1255 | I33: 365.0164181 | J33: 2865.016418
A34: 2013-06-27 | B34: 2013-06-27 | D34: 3542100 | E34: 3300 | G34: 1352 | I34: 393.2288424 | J34: 3693.228842
A35: 2013-06-28 | B35: 2013-06-28 | D35: 3545400 | E35: 4100 | G35: 1647 | I35: 479.0295144 | J35: 4579.029514
A36: 2013-06-29 | B36: 2013-06-29 | D36: 3549500 | E36: 4800 | G36: 1594 | I36: 463.6144784 | J36: 5263.614478 | K36: =+J38 -> 3356.995574
A37: 2013-06-30 | B37: 2013-06-30 | D37: 3554300 | E37: =+D40-D37 -> 978900 | G37: 1589 | I37: 462.1602297
I38: Ave | J38: =AVERAGE(J8:J36) -> 3356.995574
A39: 2013-07-01
A40: 2013-07-01 | B40: 2013-07-01 | D40: 4533200 | E40: =+D41-D40 -> 5900 | G40: 1380 | I40: =+G40*$H$4 -> 401.372635 | J40: =+I40+E40 -> 6301.372635 | K40: =+J71 -> 6230.784503
A41: 2013-07-02 | B41: 2013-07-02 | D41: 4539100 | E41: =+D42-D41 -> 5100 | G41: 1369 | I41: 398.1732879 | J41: 5498.173288
A42: 2013-07-03 | B42: 2013-07-03 | D42: 4544200 | E42: 6800 | G42: 1673 | I42: 486.5916075 | J42: 7286.591607
A43: 2013-07-04 | B43: 2013-07-04 | D43: 4551000 | E43: 6500 | G43: 1397 | I43: 406.3170805 | J43: 6906.31708
A44: 2013-07-05 | B44: 2013-07-05 | D44: 4557500 | E44: 6800 | G44: 1459 | I44: 424.3497641 | J44: 7224.349764
A45: 2013-07-06 | B45: 2013-07-06 | D45: 4564300 | E45: 7700 | G45: 1365 | I45: 397.009889 | J45: 8097.009889
A46: 2013-07-07 | B46: 2013-07-07 | D46: 4572000 | E46: 8100 | G46: 1613 | I46: 469.1406234 | J46: 8569.140623
A47: 2013-07-08 | B47: 2013-07-08 | D47: 4580100 | E47: 5700 | G47: 1370 | I47: 398.4641376 | J47: 6098.464138
A48: 2013-07-09 | B48: 2013-07-09 | D48: 4585800 | E48: 4100 | G48: 1109 | I48: 322.5523567 | J48: 4422.552357
A49: 2013-07-10 | B49: 2013-07-10 | D49: 4589900 | E49: 4400 | I49: 0 | J49: 4400
A50: 2013-07-11 | B50: 2013-07-11 | D50: 4594300 | E50: 5800 | G50: 1403 | I50: 408.0621789 | J50: 6208.062179
A51: 2013-07-12 | B51: 2013-07-12 | D51: 4600100 | E51: 7400 | G51: 1661 | I51: 483.1014107 | J51: 7883.101411
A52: 2013-07-13 | B52: 2013-07-13 | D52: 4607500 | E52: 6500 | G52: 1440 | I52: 418.8236191 | J52: 6918.823619
A53: 2013-07-14 | B53: 2013-07-14 | D53: 4614000 | E53: 6100 | G53: 1349 | I53: 392.3562932 | J53: 6492.356293
A54: 2013-07-15 | B54: 2013-07-15 | D54: 4620100 | E54: 5000 | G54: 1246 | I54: 362.3987704 | J54: 5362.39877
A55: 2013-07-16 | B55: 2013-07-16 | D55: 4625100 | E55: 4100 | G55: 1098 | I55: 319.3530096 | J55: 4419.35301
A56: 2013-07-17 | B56: 2013-07-17 | D56: 4629200 | E56: 4500 | G56: 1242 | I56: 361.2353715 | J56: 4861.235371
A57: 2013-07-18 | B57: 2013-07-18 | D57: 4633700 | E57: 5000 | G57: 1358 | I57: 394.9739408 | J57: 5394.973941
A58: 2013-07-19 | B58: 2013-07-19 | D58: 4638700 | E58: 7700 | G58: 1609 | I58: 467.9772244 | J58: 8167.977224
A59: 2013-07-20 | B59: 2013-07-20 | D59: 4646400 | E59: 6900 | G59: 1407 | I59: 409.2255779 | J59: 7309.225578
A60: 2013-07-21 | B60: 2013-07-21 | D60: 4653300 | E60: 7000 | G60: 1477 | I60: 429.5850593 | J60: 7429.585059
A61: 2013-07-22 | B61: 2013-07-22 | D61: 4660300 | E61: 5200 | G61: 1280 | I61: 372.2876614 | J61: 5572.287661
A62: 2013-07-23 | B62: 2013-07-23 | D62: 4665500 | E62: 4500 | G62: 1193 | I62: 346.9837345 | J62: 4846.983734
A63: 2013-07-24 | B63: 2013-07-24 | D63: 4670000 | E63: 4700 | G63: 1300 | I63: 378.1046562 | J63: 5078.104656
A64: 2013-07-25 | B64: 2013-07-25 | D64: 4674700 | E64: 5700 | G64: 1425 | I64: 414.4608731 | J64: 6114.460873
A65: 2013-07-26 | B65: 2013-07-26 | D65: 4680400 | E65: 7800 | G65: 1797 | I65: 522.6569747 | J65: 8322.656975
A66: 2013-07-27 | B66: 2013-07-27 | D66: 4688200 | E66: 6400 | G66: 1478 | I66: 429.8759091 | J66: 6829.875909
A67: 2013-07-28 | B67: 2013-07-28 | D67: 4694600 | E67: 6900 | G67: 1538 | I67: 447.3268932 | J67: 7347.326893
A68: 2013-07-29 | B68: 2013-07-29 | D68: 4701500 | E68: 4800 | G68: 1281 | I68: 372.5785112 | J68: 5172.578511
A69: 2013-07-30 | B69: 2013-07-30 | D69: 4706300 | E69: 3700 | G69: 1201 | I69: 349.3105323 | J69: 4049.310532
A70: 2013-07-31 | B70: 2013-07-31 | D70: 4710000 | E70: =+D73-D70 -> 4200 | G70: 1271 | I70: 369.6700138 | J70: 4569.670014 | K70: =+J71 -> 6230.784503
I71: Ave | J71: =AVERAGE(J40:J70) -> 6230.784503
A72: 2013-08-01
A73: 2013-08-01 | B73: 2013-08-01 | D73: 4714200 | E73: =+D74-D73 -> 6000 | G73: 1603 | I73: =+G73*$H$4 -> 466.232126 | J73: =+I73+E73 -> 6466.232126 | K73: =+J104 -> 5991.655054
A74: 2013-08-02 | B74: 2013-08-02 | D74: 4720200 | E74: 7300 | G74: 1807 | I74: 525.5654721 | J74: 7825.565472
A75: 2013-08-03 | B75: 2013-08-03 | D75: 4727500 | E75: 6500 | G75: 1566 | I75: 455.4706858 | J75: 6955.470686
A76: 2013-08-04 | B76: 2013-08-04 | D76: 4734000 | E76: 7000 | G76: 1524 | I76: 443.2549969 | J76: 7443.254997
A77: 2013-08-05 | B77: 2013-08-05 | D77: 4741000 | E77: 5000 | G77: 1359 | I77: 395.2647905 | J77: 5395.264791
A78: 2013-08-06 | B78: 2013-08-06 | D78: 4746000 | E78: 4100 | G78: 1241 | I78: 360.9445218 | J78: 4460.944522
A79: 2013-08-07 | B79: 2013-08-07 | D79: 4750100 | E79: 4000 | G79: 1180 | I79: 343.2026879 | J79: 4343.202688
A80: 2013-08-08 | B80: 2013-08-08 | D80: 4754100 | E80: 5200 | G80: 1440 | I80: 418.8236191 | J80: 5618.823619
A81: 2013-08-09 | B81: 2013-08-09 | D81: 4759300 | E81: 7800 | G81: 1799 | I81: 523.2386742 | J81: 8323.238674
A82: 2013-08-10 | B82: 2013-08-10 | D82: 4767100 | E82: 6200 | G82: 1417 | I82: 412.1340752 | J82: 6612.134075
A83: 2013-08-11 | B83: 2013-08-11 | D83: 4773300 | E83: 6700 | G83: 1495 | I83: 434.8203546 | J83: 7134.820355
A84: 2013-08-12 | B84: 2013-08-12 | D84: 4780000 | E84: 5000 | G84: 1348 | I84: 392.0654435 | J84: 5392.065443
A85: 2013-08-13 | B85: 2013-08-13 | D85: 4785000 | E85: 4300 | G85: 1202 | I85: 349.6013821 | J85: 4649.601382
A86: 2013-08-14 | B86: 2013-08-14 | D86: 4789300 | E86: 4700 | G86: 1335 | I86: 388.2843969 | J86: 5088.284397
A87: 2013-08-15 | B87: 2013-08-15 | D87: 4794000 | E87: 5600 | G87: 1478 | I87: 429.8759091 | J87: 6029.875909
A88: 2013-08-16 | B88: 2013-08-16 | D88: 4799600 | E88: 7100 | G88: 1755 | I88: 510.4412858 | J88: 7610.441286
A89: 2013-08-17 | B89: 2013-08-17 | D89: 4806700 | E89: 6300 | G89: 1414 | I89: 411.261526 | J89: 6711.261526
A90: 2013-08-18 | B90: 2013-08-18 | D90: 4813000 | E90: 7000 | G90: 1504 | I90: 437.4380022 | J90: 7437.438002
A91: 2013-08-19 | B91: 2013-08-19 | D91: 4820000 | E91: 5100 | G91: 1375 | I91: 399.9183863 | J91: 5499.918386
A92: 2013-08-20 | B92: 2013-08-20 | D92: 4825100 | E92: 4000 | G92: 1173 | I92: 341.1667397 | J92: 4341.16674
A93: 2013-08-21 | B93: 2013-08-21 | D93: 4829100 | E93: 4000 | G93: 1162 | I93: 337.9673927 | J93: 4337.967393
A94: 2013-08-22 | B94: 2013-08-22 | D94: 4833100 | E94: 4900 | G94: 1349 | I94: 392.3562932 | J94: 5292.356293
A95: 2013-08-23 | B95: 2013-08-23 | D95: 4838000 | E95: 6100 | G95: 1613 | I95: 469.1406234 | J95: 6569.140623
A96: 2013-08-24 | B96: 2013-08-24 | D96: 4844100 | E96: 5400 | G96: 1270 | I96: 369.3791641 | J96: 5769.379164
A97: 2013-08-25 | B97: 2013-08-25 | D97: 4849500 | E97: 6500 | G97: 1462 | I97: 425.2223133 | J97: 6925.222313
A98: 2013-08-26 | B98: 2013-08-26 | D98: 4856000 | E98: 4200 | G98: 1151 | I98: 334.7680456 | J98: 4534.768046
A99: 2013-08-27 | B99: 2013-08-27 | D99: 4860200 | E99: 3500 | G99: 1094 | I99: 318.1896106 | J99: 3818.189611
A100: 2013-08-28 | B100: 2013-08-28 | D100: 4863700 | E100: 3700 | G100: 1133 | I100: 329.5327503 | J100: 4029.53275
A101: 2013-08-29 | B101: 2013-08-29 | D101: 4867400 | E101: 5400 | G101: 1431 | I101: 416.2059715 | J101: 5816.205972
A102: 2013-08-30 | B102: 2013-08-30 | D102: 4872800 | E102: 7500 | G102: 1880 | I102: 546.7975027 | J102: 8046.797503
A103: 2013-08-31 | B103: 2013-08-31 | D103: 4880300 | E103: =+D106-D103 -> 6800 | G103: 1591 | I103: 462.7419292 | J103: 7262.741929 | K103: =+J104 -> 5991.655054
I104: Ave | J104: =AVERAGE(J73:J103) -> 5991.655054
A106: 2013-09-01 | B106: 2013-09-01 | D106: 4887100 | E106: =+D107-D106 -> 5500 | G106: 1165 | I106: =+G106*$H$4 -> 338.8399419 | J106: =+I106+E106 -> 5838.839942 | K106: =+J128 -> 4167.620516
A107: 2013-09-02 | B107: 2013-09-02 | D107: 4892600 | E107: 5400 | G107: 1286 | I107: 374.0327599 | J107: 5774.03276
A108: 2013-09-03 | B108: 2013-09-03 | D108: 4898000 | E108: 4000 | G108: 1140 | I108: 331.5686985 | J108: 4331.568698
A109: 2013-09-04 | B109: 2013-09-04 | D109: 4902000 | E109: 3200 | G109: 1073 | I109: 312.0817662 | J109: 3512.081766
A110: 2013-09-05 | B110: 2013-09-05 | D110: 4905200 | E110: 3800 | G110: 1169 | I110: 340.0033408 | J110: 4140.003341
A111: 2013-09-06 | B111: 2013-09-06 | D111: 4909000 | E111: 4800 | G111: 1328 | I111: 386.2484487 | J111: 5186.248449
A112: 2013-09-07 | B112: 2013-09-07 | D112: 4913800 | E112: 4600 | G112: 1129 | I112: 328.3693514 | J112: 4928.369351
A113: 2013-09-08 | B113: 2013-09-08 | D113: 4918400 | E113: 4700 | G113: 1175 | I113: 341.7484392 | J113: 5041.748439
A114: 2013-09-09 | B114: 2013-09-09 | D114: 4923100 | E114: 3400 | G114: 1039 | I114: 302.1928752 | J114: 3702.192875
A115: 2013-09-10 | B115: 2013-09-10 | D115: 4926500 | E115: 2800 | G115: 845 | I115: 245.7680265 | J115: 3045.768026
A116: 2013-09-11 | B116: 2013-09-11 | D116: 4929300 | E116: 2500 | G116: 914 | I116: 265.8366582 | J116: 2765.836658
A117: 2013-09-12 | B117: 2013-09-12 | D117: 4931800 | E117: 3000 | G117: 1012 | I117: 294.3399323 | J117: 3294.339932
A118: 2013-09-13 | B118: 2013-09-13 | D118: 4934800 | E118: 5000 | G118: 1359 | I118: 395.2647905 | J118: 5395.264791
A119: 2013-09-14 | B119: 2013-09-14 | D119: 4939800 | E119: 3900 | G119: 990 | I119: 287.9412381 | J119: 4187.941238
A120: 2013-09-15 | B120: 2013-09-15 | D120: 4943700 | E120: 4000 | G120: 1020 | I120: 296.6667302 | J120: 4296.66673
A121: 2013-09-16 | B121: 2013-09-16 | D121: 4947700 | E121: 3100 | G121: 956 | I121: 278.0523471 | J121: 3378.052347
A122: 2013-09-17 | B122: 2013-09-17 | D122: 4950800 | E122: 2400 | G122: 892 | I122: 259.4379641 | J122: 2659.437964
A123: 2013-09-18 | B123: 2013-09-18 | D123: 4953200 | E123: 3000 | G123: 902 | I123: 262.3464614 | J123: 3262.346461
A124: 2013-09-19 | B124: 2013-09-19 | D124: 4956200 | E124: 3300 | G124: 1060 | I124: 308.3007196 | J124: 3608.30072
A125: 2013-09-20 | B125: 2013-09-20 | D125: 4959500 | E125: 5000 | G125: 1315 | I125: 382.4674022 | J125: 5382.467402
A126: 2013-09-21 | B126: 2013-09-21 | D126: 4964500 | E126: 3500 | G126: 992 | I126: 288.5229376 | J126: 3788.522938 | K126: =+J128 -> 4167.620516
A127: 2013-09-22 | B127: 2013-09-22 | D127: 4968000 | G127: 1102
A128: 2013-09-23 | B128: 2013-09-23 | D128: Closed | I128: Ave | J128: =AVERAGE(J106:J127) -> 4167.620516
A129: 2013-09-24 | B129: 2013-09-24 | D129: Closed
A130: 2013-09-25 | B130: 2013-09-25 | D130: Closed
A131: 2013-09-26 | B131: 2013-09-26 | D131: Closed
A132: 2013-09-27 | B132: 2013-09-27 | D132: Closed
A133: 2013-09-28 | B133: 2013-09-28 | D133: Closed
A134: 2013-09-29 | B134: 2013-09-29 | D134: Closed
A135: 2013-09-30 | B135: 2013-09-30 | D135: Closed
A137: 2013-11-01 | B137: 2013-11-01 | D137: 4992500
A138: 2013-11-02 | B138: 2013-11-02
A139: 2013-11-03 | B139: 2013-11-03
A140: 2013-11-04 | B140: 2013-11-04 | D140: 4992700
A141: 2013-11-05 | B141: 2013-11-05 | D141: 4993200
A142: 2013-11-06 | B142: 2013-11-06 | D142: 4994300
A143: 2013-11-07 | B143: 2013-11-07 | D143: 4997100
A144: 2013-11-08 | B144: 2013-11-08 | D144: 4998000
A145: 2013-11-09 | B145: 2013-11-09
A146: 2013-11-10 | B146: 2013-11-10
A147: 2013-11-11 | B147: 2013-11-11 | D147: 4998200 | E147: =+D148-D147 -> 1800
A148: 2013-11-12 | B148: 2013-11-12 | D148: 5000000 | E148: 1600
A149: 2013-11-13 | B149: 2013-11-13 | D149: 5001600 | E149: 2400
A150: 2013-11-14 | B150: 2013-11-14 | D150: 5004000 | E150: 2100
A151: 2013-11-15 | B151: 2013-11-15 | D151: 5006100 | E151: 3600 | G151: 962 | I151: =+G151*$H$4 -> 279.7974456 | J151: =+I151+E151 -> 3879.797446
A152: 2013-11-16 | B152: 2013-11-16 | D152: 5009700 | E152: 2100 | G152: 694 | I152: 201.8497164 | J152: 2301.849716
A153: 2013-11-17 | B153: 2013-11-17 | D153: 5011800 | E153: 2800 | G153: 811 | I153: 235.8791355 | J153: 3035.879135
A154: 2013-11-18 | B154: 2013-11-18 | D154: 5014600 | E154: 2200 | G154: 729 | I154: 212.0294572 | J154: 2412.029457
A155: 2013-11-19 | B155: 2013-11-19 | D155: 5016800 | E155: 1600 | G155: 722 | I155: 209.993509 | J155: 1809.993509
A156: 2013-11-20 | B156: 2013-11-20 | D156: 5018400 | E156: 2300 | G156: 864 | I156: 251.2941715 | J156: 2551.294171
A157: 2013-11-21 | B157: 2013-11-21 | D157: 5020700 | E157: 3000 | G157: 1047 | I157: 304.5196731 | J157: 3304.519673
A158: 2013-11-22 | B158: 2013-11-22 | D158: 5023700 | E158: 4100 | G158: 1555 | I158: 452.2713387 | J158: 4552.271339
A159: 2013-11-23 | B159: 2013-11-23 | D159: 5027800 | E159: 2000 | G159: 646 | I159: 187.8889291 | J159: 2187.888929
A160: 2013-11-24 | B160: 2013-11-24 | D160: 5029800 | E160: 2700 | G160: 716 | I160: 208.2484106 | J160: 2908.248411
A161: 2013-11-25 | B161: 2013-11-25 | D161: 5032500 | E161: 1900 | G161: 704 | I161: 204.7582138 | J161: 2104.758214
A162: 2013-11-26 | B162: 2013-11-26 | D162: 5034400 | E162: 2700 | G162: 898 | I162: 261.1830625 | J162: 2961.183062
A163: 2013-11-27 | B163: 2013-11-27 | D163: 5037100 | E163: 5700 | G163: 1441 | I163: 419.1144689 | J163: 6119.114469
A164: 2013-11-28 | B164: 2013-11-28 | D164: 5042800 | E164: 3700 | G164: 944 | I164: 274.5621503 | J164: 3974.56215
A165: 2013-11-29 | B165: 2013-11-29 | D165: 5046500 | E165: 3400 | G165: 869 | I165: 252.7484202 | J165: 3652.74842
A166: 2013-11-30 | B166: 2013-11-30 | D166: 5049900 | E166: =+D169-D166 -> 4500 | G166: 1019 | I166: 296.3758805 | J166: 4796.37588
A169: 2013-12-01 | B169: 2013-12-01 | D169: 5054400 | E169: =+D170-D169 -> 6100 | G169: 1502 | I169: =+G169*$H$4 -> 436.8563027 | J169: =+I169+E169 -> 6536.856303
A170: 2013-12-02 | B170: 2013-12-02 | D170: 5060500 | E170: =+D171-D170 -> 2700 | G170: 933 | I170: 271.3628032 | J170: 2971.362803
A171: 2013-12-03 | B171: 2013-12-03 | D171: 5063200 | E171: 1900 | G171: 710 | I171: 206.5033122 | J171: 2106.503312
A172: 2013-12-04 | B172: 2013-12-04 | D172: 5065100 | E172: 1900 | G172: 661 | I172: 192.2516752 | J172: 2092.251675
A173: 2013-12-05 | B173: 2013-12-05 | D173: 5067000 | E173: 2100 | G173: 769 | I173: 223.6634466 | J173: 2323.663447
A174: 2013-12-06 | B174: 2013-12-06 | D174: 5069100 | E174: 1900 | G174: 788 | I174: 229.1895916 | J174: 2129.189592
A175: 2013-12-07 | B175: 2013-12-07 | D175: 5071000 | E175: 1800 | G175: 558 | I175: 162.2941524 | J175: 1962.294152
A176: 2013-12-08 | B176: 2013-12-08 | D176: 5072800 | E176: 1700 | G176: 580 | I176: 168.6928466 | J176: 1868.692847
A177: 2013-12-09 | B177: 2013-12-09 | D177: 5074500 | E177: 1500 | G177: 705 | I177: 205.0490635 | J177: 1705.049064
A178: 2013-12-10 | B178: 2013-12-10 | D178: 5076000 | E178: 1500 | G178: 672 | I178: 195.4510223 | J178: 1695.451022
A179: 2013-12-11 | B179: 2013-12-11 | D179: 5077500 | E179: 1500 | G179: 680 | I179: 197.7778201 | J179: 1697.77782
A180: 2013-12-12 | B180: 2013-12-12 | D180: 5079000 | E180: 2000 | G180: 749 | I180: 217.8464519 | J180: 2217.846452
A181: 2013-12-13 | B181: 2013-12-13 | D181: 5081000 | E181: 2400 | G181: 818 | I181: 237.9150836 | J181: 2637.915084
A182: 2013-12-14 | B182: 2013-12-14 | D182: 5083400 | E182: 1400 | G182: 516 | I182: 150.0784635 | J182: 1550.078464
A183: 2013-12-15 | B183: 2013-12-15 | D183: 5084800 | E183: 1700 | G183: 594 | I183: 172.7647429 | J183: 1872.764743
A184: 2013-12-16 | B184: 2013-12-16 | D184: 5086500 | E184: 1900 | G184: 751 | I184: 218.4281514 | J184: 2118.428151
A185: 2013-12-17 | B185: 2013-12-17 | D185: 5088400 | E185: 1600 | G185: 719 | I185: 209.1209598 | J185: 1809.12096
A186: 2013-12-18 | B186: 2013-12-18 | D186: 5090000 | E186: 2000 | G186: 807 | I186: 234.7157365 | J186: 2234.715737
A187: 2013-12-19 | B187: 2013-12-19 | D187: 5092000 | E187: 1700 | G187: 826 | I187: 240.2418815 | J187: 1940.241882
A188: 2013-12-20 | B188: 2013-12-20 | D188: 5093700 | E188: 2600 | G188: 947 | I188: 275.4346995 | J188: 2875.4347
A189: 2013-12-21 | B189: 2013-12-21 | D189: 5096300 | E189: 3500 | G189: 934 | I189: 271.653653 | J189: 3771.653653
A190: 2013-12-22 | B190: 2013-12-22 | D190: 5099800 | E190: 1700 | G190: 593 | I190: 172.4738932 | J190: 1872.473893
A191: 2013-12-23 | B191: 2013-12-23 | D191: 5101500 | E191: 2900 | G191: 929 | I191: 270.1994043 | J191: 3170.199404
A192: 2013-12-24 | B192: 2013-12-24 | D192: 5104400 | E192: 1800 | G192: 689 | I192: 200.3954678 | J192: 2000.395468
A193: 2013-12-25 | B193: 2013-12-25 | D193: 5106200 | E193: 2800 | G193: 598 | I193: 173.9281418 | J193: 2973.928142
A194: 2013-12-26 | B194: 2013-12-26 | D194: 5109000 | E194: 3700 | G194: 989 | I194: 287.6503884 | J194: 3987.650388
A195: 2013-12-27 | B195: 2013-12-27 | D195: 5112700 | E195: 4000 | G195: 1084 | I195: 315.2811133 | J195: 4315.281113
A196: 2013-12-28 | B196: 2013-12-28 | D196: 5116700 | E196: 3900 | G196: 937 | I196: 272.5262022 | J196: 4172.526202
A197: 2013-12-29 | B197: 2013-12-29 | D197: 5120600 | E197: 3500 | G197: 1115 | I197: 324.2974551 | J197: 3824.297455
A198: 2013-12-30 | B198: 2013-12-30 | D198: 5124100 | E198: 3300 | G198: 637 | I198: 185.2712815 | J198: 3485.271282
A199: 2013-12-31 | B199: 2013-12-31 | D199: 5127400 | E199: -5127400

Sheet 2014
A1: Water Meter Readings
A2: Juneau County | G2: Estimate | AG2: Use whole minute times for pump run time (i.e. 4.0 min)
A3: Rest Area #10 | Z3: 2014 Flow test | AA3: 94.81111577 | AB3: gpm | AI3: 2015 Atten flow est | AJ3: =#REF! ->  | AK3: gpm
G4: Est. waste contrib/Veh | H4: 0.2908497355 | I4: gal/veh | J4: See RA 13 analysis | U4: 1500 | V4: Max daily dose
W5: Mound Pumps | AF5: Attenuation Pumps | AL5: Run time + rest time = cycle length
A6: Date | B6: Day of Week | D6: Meter Reading (gal) | E6: H2O Use | G6: Traffic | I6: Waste Contrib | J6: Est Total | N6: Wk # | O6: 7 day ave flow | P6: Wk # | R6: 7 day ave traffic | U6: # cells | V6: Target Daily vol | W6: Actual Daily vol | X6: Actual Cycle time (min) | Y6: Mound cycle vol | Z6: Mound cycle (min) | AA6: Mound run (min) | AC6: Inflow-outflow | AD6: Atten Tank Vol | AF6: Actual Daily vol | AG6: Actual Cycle time (min) | AH6: Atten cycle vol | AI6: Atten cycle (min) | AJ6: Atten run (min)
D7: 5127400
A8: 2014-01-01 | B8: 2014-01-01 | D8: 5129400 | E8: =+D8-D7 -> 2000 | G8: 491 | I8: =+G8*$H$4 -> 142.8072201 | J8: =+I8+E8 -> 2142.80722
A9: 2014-01-02 | B9: 2014-01-02 | D9: 5131600 | E9: =+D9-D8 -> 2200 | G9: 623 | I9: =+G9*$H$4 -> 181.1993852 | J9: =+I9+E9 -> 2381.199385
A10: 2014-01-03 | B10: 2014-01-03 | D10: 5133800 | E10: 2200 | G10: 721 | I10: 209.7026593 | J10: 2409.702659
A11: 2014-01-04 | B11: 2014-01-04 | D11: 5136700 | E11: 2900 | G11: 620 | I11: 180.326836 | J11: 3080.326836
A12: 2014-01-05 | B12: 2014-01-05 | D12: 5139600 | E12: 2900 | G12: 481 | I12: 139.8987228 | J12: 3039.898723 | L12: =+B12 -> 2014-01-05 | M12: =+J12 -> 3039.898723 | N12: 1
A13: 2014-01-06 | B13: 2014-01-06 | D13: 5141700 | E13: 2100 | G13: 345 | I13: 100.3431587 | J13: 2200.343159 | L13: =+B13 -> 2014-01-06 | M13: =+J13 -> 2200.343159 | N13: 1
A14: 2014-01-07 | B14: 2014-01-07 | D14: 5143600 | E14: 1900 | G14: 434 | I14: 126.2287852 | J14: 2026.228785 | L14: 2014-01-07 | M14: 2026.228785 | N14: 1
A15: 2014-01-08 | B15: 2014-01-08 | D15: 5145600 | E15: 2000 | G15: 565 | I15: 164.3301006 | J15: 2164.330101 | L15: 2014-01-08 | M15: 2164.330101 | N15: 1
A16: 2014-01-09 | B16: 2014-01-09 | D16: 5147800 | E16: 2200 | G16: 712 | I16: 207.0850117 | J16: 2407.085012 | L16: 2014-01-09 | M16: 2407.085012 | N16: 1 | X16: 75 | AA16: 2.5 | AG16: 40 | AJ16: 4
A17: 2014-01-10 | B17: 2014-01-10 | D17: 5150100 | E17: 2300 | G17: 718 | I17: 208.8301101 | J17: 2508.83011 | L17: 2014-01-10 | M17: 2508.83011 | N17: 1 | AC17: 0
A18: 2014-01-11 | B18: 2014-01-11 | D18: 5152400 | E18: 2300 | G18: 528 | I18: 153.5686603 | J18: 2453.56866 | L18: 2014-01-11 | M18: 2453.56866 | N18: 1 | O18: =AVERAGE(M12:M18) -> 2400.04065 | P18: =+A18 -> 2014-01-11 | R18: =AVERAGE(G12:G18) -> 540.4285714 | U18: 3 | V18: =+U18*$U$4 -> 4500 | W18: =(24*60)/X18*Y18 -> 5688.666946 | X18: 60 | Y18: =+AA18*AA$3 -> 237.0277894 | Z18: =24*60/(+V18/Y18) -> 75.84889262 | AA18: 2.5 | AC18: =+M18-V18 -> -2046.43134 | AD18: =IF(+AC18+AC17<0,0,+AC18+AC17) -> 0 | AF18: =(24*60)/AG18*AH18 ->  | AG18: 40 | AH18: =+AJ18*AJ$3 ->  | AI18: =24*60/(+V18/AH18) ->  | AJ18: 4
A19: 2014-01-12 | B19: 2014-01-12 | D19: 5154400 | E19: 2000 | G19: 631 | I19: 183.5261831 | J19: 2183.526183 | L19: 2014-01-12 | M19: 2183.526183 | N19: =1+N12 -> 2 | V19: =+V18 -> 4500 | AC19: =+M19-V19 -> -2316.473817 | AD19: =IF(+AC19+AD18<0,0,+AC19+AD18) -> 0
A20: 2014-01-13 | B20: 2014-01-13 | D20: 5156100 | E20: 1700 | G20: 663 | I20: 192.8333746 | J20: 1892.833375 | L20: 2014-01-13 | M20: 1892.833375 | N20: =1+N13 -> 2 | V20: =+V19 -> 4500 | AC20: -2607.166625 | AD20: =IF(+AC20+AD19<0,0,+AC20+AD19) -> 0
A21: 2014-01-14 | B21: 2014-01-14 | D21: 5158400 | E21: 2300 | G21: 630 | I21: 183.2353334 | J21: 2483.235333 | L21: 2014-01-14 | M21: 2483.235333 | N21: 2 | V21: 4500 | AC21: -2016.764667 | AD21: 0
A22: 2014-01-15 | B22: 2014-01-15 | D22: 5159400 | E22: 1000 | G22: 755 | I22: 219.5915503 | J22: 1219.59155 | L22: 2014-01-15 | M22: 1219.59155 | N22: 2 | V22: 4500 | AC22: -3280.40845 | AD22: 0
A23: 2014-01-16 | B23: 2014-01-16 | D23: 5161000 | E23: 1600 | G23: 686 | I23: 199.5229186 | J23: 1799.522919 | L23: 2014-01-16 | M23: 1799.522919 | N23: 2 | V23: 4500 | AC23: -2700.477081 | AD23: 0
A24: 2014-01-17 | B24: 2014-01-17 | D24: 5162500 | E24: 1500 | G24: 831 | I24: 241.6961302 | J24: 1741.69613 | L24: 2014-01-17 | M24: 1741.69613 | N24: 2 | V24: 4500 | AC24: -2758.30387 | AD24: 0
A25: 2014-01-18 | B25: 2014-01-18 | D25: 5165200 | E25: 2700 | G25: 545 | I25: 158.5131058 | J25: 2858.513106 | L25: 2014-01-18 | M25: 2858.513106 | N25: 2 | O25: =AVERAGE(M19:M25) -> 2025.559799 | P25: =+A25 -> 2014-01-18 | R25: =AVERAGE(G19:G25) -> 677.2857143 | U25: 3 | V25: =+U25*$U$4 -> 4500 | Y25: 250 | Z25: =24*60/(V25/Y25) -> 80 | AA25: =+Y25/$AA$3 -> 2.636821621 | AC25: -1641.486894 | AD25: 0 | AH25: 125 | AI25: =24*60/(V25/AH25) -> 40 | AJ25: =+AH25/$AJ$3 -> 
A26: 2014-01-19 | B26: 2014-01-19 | D26: 5167000 | E26: 1800 | G26: 686 | I26: 199.5229186 | J26: 1999.522919 | L26: 2014-01-19 | M26: 1999.522919 | N26: 3 | V26: =+V25 -> 4500 | AC26: -2500.477081 | AD26: 0
A27: 2014-01-20 | B27: 2014-01-20 | D27: 5169100 | E27: 2100 | G27: 678 | I27: 197.1961207 | J27: 2297.196121 | L27: 2014-01-20 | M27: 2297.196121 | N27: 3 | V27: 4500 | AC27: -2202.803879 | AD27: 0
A28: 2014-01-21 | B28: 2014-01-21 | D28: 5170700 | E28: 1600 | G28: 616 | I28: 179.1634371 | J28: 1779.163437 | L28: 2014-01-21 | M28: 1779.163437 | N28: 3 | V28: 4500 | AC28: -2720.836563 | AD28: 0
A29: 2014-01-22 | B29: 2014-01-22 | D29: 5172500 | E29: 1800 | G29: 650 | I29: 189.0523281 | J29: 1989.052328 | L29: 2014-01-22 | M29: 1989.052328 | N29: 3 | V29: 4500 | AC29: -2510.947672 | AD29: 0
A30: 2014-01-23 | B30: 2014-01-23 | D30: 5174200 | E30: 1700 | G30: 642 | I30: 186.7255302 | J30: 1886.72553 | L30: 2014-01-23 | M30: 1886.72553 | N30: 3 | V30: 4500 | AC30: -2613.27447 | AD30: 0
A31: 2014-01-24 | B31: 2014-01-24 | D31: 5175400 | E31: 1200 | G31: 728 | I31: 211.7386074 | J31: 1411.738607 | L31: 2014-01-24 | M31: 1411.738607 | N31: 3 | V31: 4500 | AC31: -3088.261393 | AD31: 0
A32: 2014-01-25 | B32: 2014-01-25 | D32: 5177700 | E32: 2300 | G32: 500 | I32: 145.4248678 | J32: 2445.424868 | L32: 2014-01-25 | M32: 2445.424868 | N32: 3 | O32: =AVERAGE(M26:M32) -> 1972.689116 | P32: =+A32 -> 2014-01-25 | R32: =AVERAGE(G26:G32) -> 642.8571429 | U32: 3 | V32: 4500 | Y32: 250 | Z32: =24*60/(V32/Y32) -> 80 | AA32: =+Y32/$AA$3 -> 2.636821621 | AC32: -2054.575132 | AD32: 0 | AH32: 125 | AI32: =24*60/(V32/AH32) -> 40 | AJ32: =+AH32/$AJ$3 -> 
A33: 2014-01-26 | B33: 2014-01-26 | D33: 5179100 | E33: 1400 | G33: 484 | I33: 140.771272 | J33: 1540.771272 | L33: 2014-01-26 | M33: 1540.771272 | N33: 4 | V33: =+V32 -> 4500 | AC33: -2959.228728 | AD33: 0
A34: 2014-01-27 | B34: 2014-01-27 | D34: 5180600 | E34: 1500 | G34: 515 | I34: 149.7876138 | J34: 1649.787614 | L34: 2014-01-27 | M34: 1649.787614 | N34: 4 | V34: 4500 | AC34: -2850.212386 | AD34: 0
A35: 2014-01-28 | B35: 2014-01-28 | D35: 5182000 | E35: 1400 | G35: 538 | I35: 156.4771577 | J35: 1556.477158 | L35: 2014-01-28 | M35: 1556.477158 | N35: 4 | V35: 4500 | AC35: -2943.522842 | AD35: 0
A36: 2014-01-29 | B36: 2014-01-29 | D36: 5183100 | E36: 1100 | G36: 687 | I36: 199.8137683 | J36: 1299.813768 | L36: 2014-01-29 | M36: 1299.813768 | N36: 4 | V36: 4500 | AC36: -3200.186232 | AD36: 0
A37: 2014-01-30 | B37: 2014-01-30 | D37: 5184400 | E37: 1300 | G37: 621 | I37: 180.6176857 | J37: 1480.617686 | L37: 2014-01-30 | M37: 1480.617686 | N37: 4 | V37: 4500 | AC37: -3019.382314 | AD37: 0
A38: 2014-01-31 | B38: 2014-01-31 | D38: 5185600 | E38: 1200 | G38: 795 | I38: 231.2255397 | J38: 1431.22554 | L38: 2014-01-31 | M38: 1431.22554 | N38: 4 | V38: 4500 | AC38: -3068.77446 | AD38: 0
A39: 2014-02-01 | B39: 2014-02-01 | D39: 5187500 | E39: =+D39-D38 -> 1900 | G39: 482 | I39: =+G39*$H$4 -> 140.1895725 | J39: =+I39+E39 -> 2040.189573 | L39: =+B39 -> 2014-02-01 | M39: =+J39 -> 2040.189573 | N39: 4 | O39: =AVERAGE(M33:M39) -> 1571.268944 | P39: =+A39 -> 2014-02-01 | R39: =AVERAGE(G33:G39) -> 588.8571429 | U39: 3 | V39: 4500 | Y39: 250 | Z39: =24*60/(V39/Y39) -> 80 | AA39: =+Y39/$AA$3 -> 2.636821621 | AC39: -2459.810427 | AD39: 0 | AH39: 125 | AI39: =24*60/(V39/AH39) -> 40 | AJ39: =+AH39/$AJ$3 -> 
A40: 2014-02-02 | B40: 2014-02-02 | D40: 5188700 | E40: =+D40-D39 -> 1200 | G40: 565 | I40: =+G40*$H$4 -> 164.3301006 | J40: =+I40+E40 -> 1364.330101 | L40: 2014-02-02 | M40: 1364.330101 | N40: 5 | V40: =+V39 -> 4500 | AC40: -3135.669899 | AD40: 0
A41: 2014-02-03 | B41: 2014-02-03 | D41: 5190200 | E41: 1500 | G41: 666 | I41: 193.7059238 | J41: 1693.705924 | L41: 2014-02-03 | M41: 1693.705924 | N41: 5 | V41: 4500 | AC41: -2806.294076 | AD41: 0
A42: 2014-02-04 | B42: 2014-02-04 | D42: 5191500 | E42: 1300 | G42: 650 | I42: 189.0523281 | J42: 1489.052328 | L42: 2014-02-04 | M42: 1489.052328 | N42: 5 | V42: 4500 | AC42: -3010.947672 | AD42: 0
A43: 2014-02-05 | B43: 2014-02-05 | D43: 5193000 | E43: 1500 | G43: 540 | I43: 157.0588572 | J43: 1657.058857 | L43: 2014-02-05 | M43: 1657.058857 | N43: 5 | V43: 4500 | AC43: -2842.941143 | AD43: 0
A44: 2014-02-06 | B44: 2014-02-06 | D44: 5194200 | E44: 1200 | G44: 676 | I44: 196.6144212 | J44: 1396.614421 | L44: 2014-02-06 | M44: 1396.614421 | N44: 5 | V44: 4500 | AC44: -3103.385579 | AD44: 0
A45: 2014-02-07 | B45: 2014-02-07 | D45: 5195600 | E45: 1400 | G45: 729 | I45: 212.0294572 | J45: 1612.029457 | L45: 2014-02-07 | M45: 1612.029457 | N45: 5 | V45: 4500 | AC45: -2887.970543 | AD45: 0
A46: 2014-02-08 | B46: 2014-02-08 | D46: 5197700 | E46: 2100 | G46: 549 | I46: 159.6765048 | J46: 2259.676505 | L46: 2014-02-08 | M46: 2259.676505 | N46: 5 | O46: =AVERAGE(M40:M46) -> 1638.923942 | P46: =+A46 -> 2014-02-08 | R46: =AVERAGE(G40:G46) -> 625 | U46: 3 | V46: 4500 | Y46: 250 | Z46: =24*60/(V46/Y46) -> 80 | AA46: =+Y46/$AA$3 -> 2.636821621 | AC46: -2240.323495 | AD46: 0 | AH46: 125 | AI46: =24*60/(V46/AH46) -> 40 | AJ46: =+AH46/$AJ$3 -> 
A47: 2014-02-09 | B47: 2014-02-09 | D47: 5199300 | E47: 1600 | G47: 605 | I47: 175.96409 | J47: 1775.96409 | L47: 2014-02-09 | M47: 1775.96409 | N47: 6 | V47: =+V46 -> 4500 | AC47: -2724.03591 | AD47: 0
A48: 2014-02-10 | B48: 2014-02-10 | D48: 5201400 | E48: 2100 | G48: 584 | I48: 169.8562455 | J48: 2269.856246 | L48: 2014-02-10 | M48: 2269.856246 | N48: 6 | V48: 4500 | AC48: -2230.143754 | AD48: 0
A49: 2014-02-11 | B49: 2014-02-11 | D49: 5202700 | E49: 1300 | G49: 615 | I49: 178.8725873 | J49: 1478.872587 | L49: 2014-02-11 | M49: 1478.872587 | N49: 6 | V49: 4500 | AC49: -3021.127413 | AD49: 0
A50: 2014-02-12 | B50: 2014-02-12 | D50: 5204200 | E50: 1500 | G50: 716 | I50: 208.2484106 | J50: 1708.248411 | L50: 2014-02-12 | M50: 1708.248411 | N50: 6 | V50: 4500 | AC50: -2791.751589 | AD50: 0
A51: 2014-02-13 | B51: 2014-02-13 | D51: 5205400 | E51: 1200 | G51: 741 | I51: 215.519654 | J51: 1415.519654 | L51: 2014-02-13 | M51: 1415.519654 | N51: 6 | V51: 4500 | AC51: -3084.480346 | AD51: 0
A52: 2014-02-14 | B52: 2014-02-14 | D52: 5207000 | E52: 1600 | G52: 858 | I52: 249.5490731 | J52: 1849.549073 | L52: 2014-02-14 | M52: 1849.549073 | N52: 6 | V52: 4500 | AC52: -2650.450927 | AD52: 0
A53: 2014-02-15 | B53: 2014-02-15 | D53: 5209000 | E53: 2000 | G53: 535 | I53: 155.6046085 | J53: 2155.604608 | L53: 2014-02-15 | M53: 2155.604608 | N53: 6 | O53: =AVERAGE(M47:M53) -> 1807.659238 | P53: =+A53 -> 2014-02-15 | R53: =AVERAGE(G47:G53) -> 664.8571429 | U53: 3 | V53: 4500 | Y53: 250 | Z53: =24*60/(V53/Y53) -> 80 | AA53: =+Y53/$AA$3 -> 2.636821621 | AC53: -2344.395392 | AD53: 0 | AH53: 125 | AI53: =24*60/(V53/AH53) -> 40 | AJ53: =+AH53/$AJ$3 -> 
A54: 2014-02-16 | B54: 2014-02-16 | D54: 5210300 | E54: 1300 | G54: 710 | I54: 206.5033122 | J54: 1506.503312 | L54: 2014-02-16 | M54: 1506.503312 | N54: 7 | V54: =+V53 -> 4500 | AC54: -2993.496688 | AD54: 0
A55: 2014-02-17 | B55: 2014-02-17 | D55: 5212200 | E55: 1900 | G55: 534 | I55: 155.3137588 | J55: 2055.313759 | L55: 2014-02-17 | M55: 2055.313759 | N55: 7 | V55: 4500 | AC55: -2444.686241 | AD55: 0
A56: 2014-02-18 | B56: 2014-02-18 | D56: 5213200 | E56: 1000 | G56: 698 | I56: 203.0131154 | J56: 1203.013115 | L56: 2014-02-18 | M56: 1203.013115 | N56: 7 | V56: 4500 | AC56: -3296.986885 | AD56: 0
A57: 2014-02-19 | B57: 2014-02-19 | D57: 5214500 | E57: 1300 | G57: 764 | I57: 222.2091979 | J57: 1522.209198 | L57: 2014-02-19 | M57: 1522.209198 | N57: 7 | V57: 4500 | AC57: -2977.790802 | AD57: 0
A58: 2014-02-20 | B58: 2014-02-20 | D58: 5216000 | E58: 1500 | G58: 563 | I58: 163.7484011 | J58: 1663.748401 | L58: 2014-02-20 | M58: 1663.748401 | N58: 7 | V58: 4500 | AC58: -2836.251599 | AD58: 0
A59: 2014-02-21 | B59: 2014-02-21 | D59: 5217800 | E59: 1800 | G59: 758 | I59: 220.4640995 | J59: 2020.4641 | L59: 2014-02-21 | M59: 2020.4641 | N59: 7 | V59: 4500 | AC59: -2479.5359 | AD59: 0
A60: 2014-02-22 | B60: 2014-02-22 | D60: 5219700 | E60: 1900 | G60: 606 | I60: 176.2549397 | J60: 2076.25494 | L60: 2014-02-22 | M60: 2076.25494 | N60: 7 | O60: =AVERAGE(M54:M60) -> 1721.072404 | P60: =+A60 -> 2014-02-22 | R60: =AVERAGE(G54:G60) -> 661.8571429 | U60: 3 | V60: 4500 | Y60: 250 | Z60: =24*60/(V60/Y60) -> 80 | AA60: =+Y60/$AA$3 -> 2.636821621 | AC60: -2423.74506 | AD60: 0 | AH60: 125 | AI60: =24*60/(V60/AH60) -> 40 | AJ60: =+AH60/$AJ$3 -> 
A61: 2014-02-23 | B61: 2014-02-23 | D61: 5221400 | E61: 1700 | G61: 642 | I61: 186.7255302 | J61: 1886.72553 | L61: 2014-02-23 | M61: 1886.72553 | N61: 8 | V61: =+V60 -> 4500 | AC61: -2613.27447 | AD61: 0
A62: 2014-02-24 | B62: 2014-02-24 | D62: 5223000 | E62: 1600 | G62: 659 | I62: 191.6699757 | J62: 1791.669976 | L62: 2014-02-24 | M62: 1791.669976 | N62: 8 | V62: 4500 | AC62: -2708.330024 | AD62: 0
A63: 2014-02-25 | B63: 2014-02-25 | D63: 5224100 | E63: 1100 | G63: 710 | I63: 206.5033122 | J63: 1306.503312 | L63: 2014-02-25 | M63: 1306.503312 | N63: 8 | V63: 4500 | AC63: -3193.496688 | AD63: 0
A64: 2014-02-26 | B64: 2014-02-26 | D64: 5225800 | E64: 1700 | G64: 659 | I64: 191.6699757 | J64: 1891.669976 | L64: 2014-02-26 | M64: 1891.669976 | N64: 8 | V64: 4500 | AC64: -2608.330024 | AD64: 0
A65: 2014-02-27 | B65: 2014-02-27 | D65: 5227400 | E65: 1600 | G65: 700 | I65: 203.5948149 | J65: 1803.594815 | L65: 2014-02-27 | M65: 1803.594815 | N65: 8 | V65: 4500 | AC65: -2696.405185 | AD65: 0
A66: 2014-02-28 | B66: 2014-02-28 | D66: 5229100 | E66: 1700 | G66: 855 | I66: 248.6765239 | J66: 1948.676524 | L66: 2014-02-28 | M66: 1948.676524 | N66: 8 | V66: 4500 | AC66: -2551.323476 | AD66: 0
A67: 2014-03-01 | B67: 2014-03-01 | D67: 5231500 | E67: =+D67-D66 -> 2400 | G67: 604 | I67: =+G67*$H$4 -> 175.6732402 | J67: =+I67+E67 -> 2575.67324 | L67: 2014-03-01 | M67: 2575.67324 | N67: 8 | O67: =AVERAGE(M61:M67) -> 1886.359053 | P67: =+A67 -> 2014-03-01 | R67: =AVERAGE(G61:G67) -> 689.8571429 | U67: 3 | V67: 4500 | Y67: 250 | Z67: =24*60/(V67/Y67) -> 80 | AA67: =+Y67/$AA$3 -> 2.636821621 | AC67: -1924.32676 | AD67: 0 | AH67: 125 | AI67: =24*60/(V67/AH67) -> 40 | AJ67: =+AH67/$AJ$3 -> 
A68: 2014-03-02 | B68: 2014-03-02 | D68: 5233400 | E68: =+D68-D67 -> 1900 | G68: 665 | I68: 193.4150741 | J68: 2093.415074 | L68: 2014-03-02 | M68: 2093.415074 | N68: 9 | V68: =+V67 -> 4500 | AC68: -2406.584926 | AD68: 0
A69: 2014-03-03 | B69: 2014-03-03 | D69: 5235400 | E69: 2000 | G69: 656 | I69: 190.7974265 | J69: 2190.797426 | L69: 2014-03-03 | M69: 2190.797426 | N69: 9 | V69: 4500 | AC69: -2309.202574 | AD69: 0
A70: 2014-03-04 | B70: 2014-03-04 | D70: 5236700 | E70: 1300 | G70: 605 | I70: 175.96409 | J70: 1475.96409 | L70: 2014-03-04 | M70: 1475.96409 | N70: 9 | V70: 4500 | AC70: -3024.03591 | AD70: 0
A71: 2014-03-05 | B71: 2014-03-05 | D71: 5238100 | E71: 1400 | G71: 673 | I71: 195.741872 | J71: 1595.741872 | L71: 2014-03-05 | M71: 1595.741872 | N71: 9 | V71: 4500 | AC71: -2904.258128 | AD71: 0
A72: 2014-03-06 | B72: 2014-03-06 | D72: 5239600 | E72: 1500 | G72: 840 | I72: 244.3137778 | J72: 1744.313778 | L72: 2014-03-06 | M72: 1744.313778 | N72: 9 | V72: 4500 | AC72: -2755.686222 | AD72: 0
A73: 2014-03-07 | B73: 2014-03-07 | D73: 5241200 | E73: 1600 | G73: 837 | I73: 243.4412286 | J73: 1843.441229 | L73: 2014-03-07 | M73: 1843.441229 | N73: 9 | V73: 4500 | AC73: -2656.558771 | AD73: 0
A74: 2014-03-08 | B74: 2014-03-08 | D74: 5243600 | E74: 2400 | G74: 646 | I74: 187.8889291 | J74: 2587.888929 | L74: 2014-03-08 | M74: 2587.888929 | N74: 9 | O74: =AVERAGE(M68:M74) -> 1933.080343 | P74: =+A74 -> 2014-03-08 | R74: =AVERAGE(G68:G74) -> 703.1428571 | U74: 3 | V74: 4500 | Y74: 250 | Z74: =24*60/(V74/Y74) -> 80 | AA74: =+Y74/$AA$3 -> 2.636821621 | AC74: -1912.111071 | AD74: 0 | AH74: 125 | AI74: =24*60/(V74/AH74) -> 40 | AJ74: =+AH74/$AJ$3 -> 
A75: 2014-03-09 | B75: 2014-03-09 | D75: 5245600 | E75: 2000 | G75: 800 | I75: 232.6797884 | J75: 2232.679788 | L75: 2014-03-09 | M75: 2232.679788 | N75: 10 | V75: =+V74 -> 4500 | AC75: -2267.320212 | AD75: 0
A76: 2014-03-10 | B76: 2014-03-10 | D76: 5247800 | E76: 2200 | G76: 741 | I76: 215.519654 | J76: 2415.519654 | L76: 2014-03-10 | M76: 2415.519654 | N76: 10 | V76: 4500 | AC76: -2084.480346 | AD76: 0
A77: 2014-03-11 | B77: 2014-03-11 | D77: 5249500 | E77: 1700 | G77: 725 | I77: 210.8660582 | J77: 1910.866058 | L77: 2014-03-11 | M77: 1910.866058 | N77: 10 | V77: 4500 | AC77: -2589.133942 | AD77: 0
A78: 2014-03-12 | B78: 2014-03-12 | D78: 5251100 | E78: 1600 | G78: 726 | I78: 211.156908 | J78: 1811.156908 | L78: 2014-03-12 | M78: 1811.156908 | N78: 10 | V78: 4500 | AC78: -2688.843092 | AD78: 0
A79: 2014-03-13 | B79: 2014-03-13 | D79: 5252700 | E79: 1600 | G79: 872 | I79: 253.6209694 | J79: 1853.620969 | L79: 2014-03-13 | M79: 1853.620969 | N79: 10 | V79: 4500 | AC79: -2646.379031 | AD79: 0
A80: 2014-03-14 | B80: 2014-03-14 | D80: 5255000 | E80: 2300 | G80: 1033 | I80: 300.4477768 | J80: 2600.447777 | L80: 2014-03-14 | M80: 2600.447777 | N80: 10 | V80: 4500 | AC80: -1899.552223 | AD80: 0
A81: 2014-03-15 | B81: 2014-03-15 | D81: 5257800 | E81: 2800 | G81: 817 | I81: 237.6242339 | J81: 3037.624234 | L81: 2014-03-15 | M81: 3037.624234 | N81: 10 | O81: =AVERAGE(M75:M81) -> 2265.987913 | P81: =+A81 -> 2014-03-15 | R81: =AVERAGE(G75:G81) -> 816.2857143 | U81: 3 | V81: 4500 | Y81: 250 | Z81: =24*60/(V81/Y81) -> 80 | AA81: =+Y81/$AA$3 -> 2.636821621 | AC81: -1462.375766 | AD81: 0 | AH81: 125 | AI81: =24*60/(V81/AH81) -> 40 | AJ81: =+AH81/$AJ$3 -> 
A82: 2014-03-16 | B82: 2014-03-16 | D82: 5260400 | E82: 2600 | G82: 875 | I82: 254.4935186 | J82: 2854.493519 | L82: 2014-03-16 | M82: 2854.493519 | N82: 11 | V82: =+V81 -> 4500 | AC82: -1645.506481 | AD82: 0
A83: 2014-03-17 | B83: 2014-03-17 | D83: 5263300 | E83: 2900 | G83: 864 | I83: 251.2941715 | J83: 3151.294171 | L83: 2014-03-17 | M83: 3151.294171 | N83: 11 | V83: 4500 | AC83: =+M83-V83 -> -1348.705829 | AD83: 0
A84: 2014-03-18 | B84: 2014-03-18 | D84: 5265300 | E84: 2000 | G84: 730 | I84: 212.3203069 | J84: 2212.320307 | L84: 2014-03-18 | M84: 2212.320307 | N84: =1+N77 -> 11 | V84: 4500 | AC84: -2287.679693 | AD84: =IF(+AC84+AD83<0,0,+AC84+AD83) -> 0
A85: 2014-03-19 | B85: 2014-03-19 | D85: 5267000 | E85: 1700 | G85: 748 | I85: 217.5556022 | J85: 1917.555602 | L85: 2014-03-19 | M85: 1917.555602 | N85: 11 | V85: 4500 | AC85: -2582.444398 | AD85: 0
A86: 2014-03-20 | B86: 2014-03-20 | D86: 5268700 | E86: 1700 | G86: 907 | I86: 263.8007101 | J86: 1963.80071 | L86: 2014-03-20 | M86: 1963.80071 | N86: 11 | V86: 4500 | AC86: -2536.19929 | AD86: 0
A87: 2014-03-21 | B87: 2014-03-21 | D87: 5271100 | E87: 2400 | G87: 955 | I87: 277.7614974 | J87: 2677.761497 | L87: 2014-03-21 | M87: 2677.761497 | N87: 11 | V87: 4500 | AC87: -1822.238503 | AD87: 0
A88: 2014-03-22 | B88: 2014-03-22 | D88: 5274100 | E88: 3000 | G88: 865 | I88: 251.5850212 | J88: 3251.585021 | L88: 2014-03-22 | M88: 3251.585021 | N88: 11 | O88: =AVERAGE(M82:M88) -> 2575.544404 | P88: =+A88 -> 2014-03-22 | R88: =AVERAGE(G82:G88) -> 849.1428571 | U88: 3 | V88: =+U88*$U$4 -> 4500 | Y88: 250 | Z88: =24*60/(V88/Y88) -> 80 | AA88: =+Y88/$AA$3 -> 2.636821621 | AC88: -1248.414979 | AD88: 0 | AH88: 125 | AI88: =24*60/(V88/AH88) -> 40 | AJ88: =+AH88/$AJ$3 -> 
A89: 2014-03-23 | B89: 2014-03-23 | D89: 5277100 | E89: 3000 | G89: 1015 | I89: 295.2124815 | J89: 3295.212482 | L89: 2014-03-23 | M89: 3295.212482 | N89: 12 | V89: =+V88 -> 4500 | AC89: -1204.787518 | AD89: 0
A90: 2014-03-24 | B90: 2014-03-24 | D90: 5280600 | E90: 3500 | G90: 836 | I90: 243.1503789 | J90: 3743.150379 | L90: 2014-03-24 | M90: 3743.150379 | N90: 12 | V90: 4500 | AC90: -756.8496211 | AD90: 0
A91: 2014-03-25 | B91: 2014-03-25 | D91: 5282700 | E91: 2100 | G91: 790 | I91: 229.771291 | J91: 2329.771291 | L91: 2014-03-25 | M91: 2329.771291 | N91: 12 | V91: 4500 | AC91: -2170.228709 | AD91: 0
A92: 2014-03-26 | B92: 2014-03-26 | D92: 5284400 | E92: 1700 | G92: 883 | I92: 256.8203164 | J92: 1956.820316 | L92: 2014-03-26 | M92: 1956.820316 | N92: 12 | V92: 4500 | AC92: -2543.179684 | AD92: 0
A93: 2014-03-27 | B93: 2014-03-27 | D93: 5286700 | E93: 2300 | G93: 881 | I93: 256.238617 | J93: 2556.238617 | L93: 2014-03-27 | M93: 2556.238617 | N93: 12 | V93: 4500 | AC93: -1943.761383 | AD93: 0
A94: 2014-03-28 | B94: 2014-03-28 | D94: 5288800 | E94: 2100 | G94: 995 | I94: 289.3954868 | J94: 2389.395487 | L94: 2014-03-28 | M94: 2389.395487 | N94: 12 | V94: 4500 | AC94: -2110.604513 | AD94: 0
A95: 2014-03-29 | B95: 2014-03-29 | D95: 5291800 | E95: 3000 | G95: 837 | I95: 243.4412286 | J95: 3243.441229 | L95: 2014-03-29 | M95: 3243.441229 | N95: 12 | O95: =AVERAGE(M89:M95) -> 2787.718543 | P95: =+A95 -> 2014-03-29 | R95: =AVERAGE(G89:G95) -> 891 | U95: 3 | V95: 4500 | Y95: 250 | Z95: =24*60/(V95/Y95) -> 80 | AA95: =+Y95/$AA$3 -> 2.636821621 | AC95: -1256.558771 | AD95: 0 | AH95: 125 | AI95: =24*60/(V95/AH95) -> 40 | AJ95: =+AH95/$AJ$3 -> 
A96: 2014-03-30 | B96: 2014-03-30 | D96: 5294400 | E96: 2600 | G96: 900 | I96: 261.764762 | J96: 2861.764762 | L96: 2014-03-30 | M96: 2861.764762 | N96: 13 | V96: =+V95 -> 4500 | AC96: -1638.235238 | AD96: 0
A97: 2014-03-31 | B97: 2014-03-31 | D97: 5298200 | E97: 3800 | G97: 852 | I97: 247.8039746 | J97: 4047.803975 | L97: 2014-03-31 | M97: 4047.803975 | N97: 13 | V97: 4500 | AC97: -452.1960254 | AD97: 0
A98: 2014-04-01 | B98: 2014-04-01 | D98: 5300100 | E98: =+D98-D97 -> 1900 | G98: 829 | I98: 241.1144307 | J98: 2141.114431 | L98: =+B98 -> 2014-04-01 | M98: =+J98 -> 2141.114431 | N98: 13 | V98: 4500 | AC98: -2358.885569 | AD98: 0
A99: 2014-04-02 | B99: 2014-04-02 | D99: 5302000 | E99: 1900 | G99: 892 | I99: 259.4379641 | J99: 2159.437964 | L99: 2014-04-02 | M99: 2159.437964 | N99: 13 | V99: 4500 | AC99: -2340.562036 | AD99: 0
A100: 2014-04-03 | B100: 2014-04-03 | D100: 5304000 | E100: 2000 | G100: 871 | I100: 253.3301196 | J100: 2253.33012 | L100: 2014-04-03 | M100: 2253.33012 | N100: 13 | V100: 4500 | AC100: -2246.66988 | AD100: 0
A101: 2014-04-04 | B101: 2014-04-04 | D101: 5306400 | E101: 2400 | G101: 889 | I101: 258.5654149 | J101: 2658.565415 | L101: 2014-04-04 | M101: 2658.565415 | N101: 13 | V101: 4500 | AC101: -1841.434585 | AD101: 0
A102: 2014-04-05 | B102: 2014-04-05 | D102: 5309400 | E102: 3000 | G102: 806 | I102: 234.4248868 | J102: 3234.424887 | L102: 2014-04-05 | M102: 3234.424887 | N102: 13 | O102: =AVERAGE(M96:M102) -> 2765.205936 | P102: =+A102 -> 2014-04-05 | R102: =AVERAGE(G96:G102) -> 862.7142857 | U102: 3 | V102: =+U102*$U$4 -> 4500 | Y102: 250 | Z102: =24*60/(V102/Y102) -> 80 | AA102: =+Y102/$AA$3 -> 2.636821621 | AC102: -1265.575113 | AD102: 0 | AH102: 125 | AI102: =24*60/(V102/AH102) -> 40 | AJ102: =+AH102/$AJ$3 -> 
A103: 2014-04-06 | B103: 2014-04-06 | D103: 5312200 | E103: 2800 | G103: 964 | I103: 280.379145 | J103: 3080.379145 | L103: 2014-04-06 | M103: 3080.379145 | N103: 14 | V103: =+V102 -> 4500 | AC103: -1419.620855 | AD103: 0
A104: 2014-04-07 | B104: 2014-04-07 | D104: 5315700 | E104: 3500 | G104: 841 | I104: 244.6046276 | J104: 3744.604628 | L104: 2014-04-07 | M104: 3744.604628 | N104: 14 | V104: 4500 | AC104: -755.3953724 | AD104: 0
A105: 2014-04-08 | B105: 2014-04-08 | D105: 5317500 | E105: 1800 | G105: 887 | I105: 257.9837154 | J105: 2057.983715 | L105: 2014-04-08 | M105: 2057.983715 | N105: 14 | V105: 4500 | AC105: -2442.016285 | AD105: 0
A106: 2014-04-09 | B106: 2014-04-09 | D106: 5320000 | E106: 2500 | G106: 888 | I106: 258.2745651 | J106: 2758.274565 | L106: 2014-04-09 | M106: 2758.274565 | N106: 14 | V106: 4500 | AC106: -1741.725435 | AD106: 0
A107: 2014-04-10 | B107: 2014-04-10 | D107: 5322100 | E107: 2100 | G107: 974 | I107: 283.2876424 | J107: 2383.287642 | L107: 2014-04-10 | M107: 2383.287642 | N107: 14 | V107: 4500 | AC107: -2116.712358 | AD107: 0
A108: 2014-04-11 | B108: 2014-04-11 | D108: 5324600 | E108: 2500 | G108: 1068 | I108: 310.6275175 | J108: 2810.627518 | L108: 2014-04-11 | M108: 2810.627518 | N108: 14 | V108: 4500 | AC108: -1689.372482 | AD108: 0
A109: 2014-04-12 | B109: 2014-04-12 | D109: 5328000 | E109: 3400 | G109: 723 | I109: 210.2843588 | J109: 3610.284359 | L109: 2014-04-12 | M109: 3610.284359 | N109: 14 | O109: =AVERAGE(M103:M109) -> 2920.777367 | P109: =+A109 -> 2014-04-12 | R109: =AVERAGE(G103:G109) -> 906.4285714 | U109: 3 | V109: =+U109*$U$4 -> 4500 | Y109: 250 | Z109: =24*60/(V109/Y109) -> 80 | AA109: =+Y109/$AA$3 -> 2.636821621 | AC109: -889.7156412 | AD109: 0 | AH109: 125 | AI109: =24*60/(V109/AH109) -> 40 | AJ109: =+AH109/$AJ$3 -> 
A110: 2014-04-13 | B110: 2014-04-13 | D110: 5330200 | E110: 2200 | G110: 993 | I110: 288.8137874 | J110: 2488.813787 | L110: 2014-04-13 | M110: 2488.813787 | N110: 15 | V110: =+V109 -> 4500 | AC110: -2011.186213 | AD110: 0
A111: 2014-04-14 | B111: 2014-04-14 | D111: 5334200 | E111: 4000 | G111: 842 | I111: 244.8954773 | J111: 4244.895477 | L111: 2014-04-14 | M111: 4244.895477 | N111: 15 | V111: 4500 | AC111: -255.1045227 | AD111: 0
A112: 2014-04-15 | B112: 2014-04-15 | D112: 5335300 | E112: 1100 | G112: 904 | I112: 262.9281609 | J112: 1362.928161 | L112: 2014-04-15 | M112: 1362.928161 | N112: 15 | V112: 4500 | AC112: -3137.071839 | AD112: 0
A113: 2014-04-16 | B113: 2014-04-16 | D113: 5337700 | E113: 2400 | G113: 863 | I113: 251.0033217 | J113: 2651.003322 | L113: 2014-04-16 | M113: 2651.003322 | N113: 15 | V113: 4500 | AC113: -1848.996678 | AD113: 0
A114: 2014-04-17 | B114: 2014-04-17 | D114: 5339700 | E114: 2000 | G114: 1063 | I114: 309.1732688 | J114: 2309.173269 | L114: 2014-04-17 | M114: 2309.173269 | N114: 15 | V114: 4500 | AC114: -2190.826731 | AD114: 0
A115: 2014-04-18 | B115: 2014-04-18 | D115: 5343000 | E115: 3300 | G115: 1342 | I115: 390.320345 | J115: 3690.320345 | L115: 2014-04-18 | M115: 3690.320345 | N115: 15 | V115: 4500 | AC115: -809.679655 | AD115: 0
A116: 2014-04-19 | B116: 2014-04-19 | D116: 5347200 | E116: 4200 | G116: 847 | I116: 246.349726 | J116: 4446.349726 | L116: 2014-04-19 | M116: 4446.349726 | N116: 15 | O116: =AVERAGE(M110:M116) -> 3027.640584 | P116: =+A116 -> 2014-04-19 | R116: =AVERAGE(G110:G116) -> 979.1428571 | U116: 3 | V116: =+U116*$U$4 -> 4500 | Y116: 250 | Z116: =24*60/(V116/Y116) -> 80 | AA116: =+Y116/$AA$3 -> 2.636821621 | AC116: -53.65027403 | AD116: 0 | AH116: 125 | AI116: =24*60/(V116/AH116) -> 40 | AJ116: =+AH116/$AJ$3 -> 
A117: 2014-04-20 | B117: 2014-04-20 | D117: 5350800 | E117: 3600 | G117: 989 | I117: 287.6503884 | J117: 3887.650388 | L117: 2014-04-20 | M117: 3887.650388 | N117: 16 | V117: 4500 | AC117: -612.3496116 | AD117: 0
A118: 2014-04-21 | B118: 2014-04-21 | D118: 5354400 | E118: 3600 | G118: 1190 | I118: 346.1111852 | J118: 3946.111185 | L118: 2014-04-21 | M118: 3946.111185 | N118: 16 | V118: 4500 | AC118: -553.8888148 | AD118: 0
A119: 2014-04-22 | B119: 2014-04-22 | D119: 5357700 | E119: 3300 | G119: 989 | I119: 287.6503884 | J119: 3587.650388 | L119: 2014-04-22 | M119: 3587.650388 | N119: 16 | V119: 4500 | AC119: -912.3496116 | AD119: 0
A120: 2014-04-23 | B120: 2014-04-23 | D120: 5360200 | E120: 2500 | G120: 932 | I120: 271.0719535 | J120: 2771.071953 | L120: 2014-04-23 | M120: 2771.071953 | N120: 16 | V120: 4500 | AC120: -1728.928047 | AD120: 0
A121: 2014-04-24 | B121: 2014-04-24 | D121: 5362700 | E121: 2500 | G121: 1021 | I121: 296.9575799 | J121: 2796.95758 | L121: 2014-04-24 | M121: 2796.95758 | N121: 16 | V121: 4500 | AC121: -1703.04242 | AD121: 0
A122: 2014-04-25 | B122: 2014-04-25 | D122: 5365400 | E122: 2700 | G122: 1223 | I122: 355.7092265 | J122: 3055.709227 | L122: 2014-04-25 | M122: 3055.709227 | N122: 16 | V122: 4500 | AC122: -1444.290773 | AD122: 0
A123: 2014-04-26 | B123: 2014-04-26 | D123: 5369000 | E123: 3600 | G123: 920 | I123: 267.5817567 | J123: 3867.581757 | L123: 2014-04-26 | M123: 3867.581757 | N123: 16 | O123: =AVERAGE(M117:M123) -> 3416.10464 | P123: =+A123 -> 2014-04-26 | R123: =AVERAGE(G117:G123) -> 1037.714286 | U123: 3 | V123: =+U123*$U$4 -> 4500 | Y123: 250 | Z123: =24*60/(V123/Y123) -> 80 | AA123: =+Y123/$AA$3 -> 2.636821621 | AC123: -632.4182433 | AD123: 0 | AH123: 125 | AI123: =24*60/(V123/AH123) -> 40 | AJ123: =+AH123/$AJ$3 -> 
A124: 2014-04-27 | B124: 2014-04-27 | D124: 5372700 | E124: 3700 | G124: 1030 | I124: 299.5752276 | J124: 3999.575228 | L124: 2014-04-27 | M124: 3999.575228 | N124: 17 | V124: 4500 | AC124: -500.4247724 | AD124: 0
A125: 2014-04-28 | B125: 2014-04-28 | D125: 5375100 | E125: 2400 | G125: 928 | I125: 269.9085545 | J125: 2669.908555 | L125: 2014-04-28 | M125: 2669.908555 | N125: 17 | V125: 4500 | AC125: -1830.091445 | AD125: 0
A126: 2014-04-29 | B126: 2014-04-29 | D126: 5382800 | E126: 7700 | G126: 568 | I126: 165.2026498 | J126: 7865.20265 | L126: 2014-04-29 | M126: 7865.20265 | N126: 17 | V126: 4500 | AC126: 3365.20265 | AD126: 3365.20265
A127: 2014-04-30 | B127: 2014-04-30 | D127: 5384800 | E127: 2000 | G127: 948 | I127: 275.7255493 | J127: 2275.725549 | L127: 2014-04-30 | M127: 2275.725549 | N127: 17 | V127: 4500 | AC127: -2224.274451 | AD127: 1140.928199
A128: 2014-05-01 | B128: 2014-05-01 | D128: 5387400 | E128: =+D128-D127 -> 2600 | G128: 1022 | I128: =+G128*$H$4 -> 297.2484297 | J128: =+I128+E128 -> 2897.24843 | L128: 2014-05-01 | M128: 2897.24843 | N128: 17 | V128: 4500 | AC128: -1602.75157 | AD128: 0
A129: 2014-05-02 | B129: 2014-05-02 | D129: 5389000 | E129: =+D129-D128 -> 1600 | G129: 1287 | I129: 374.3236096 | J129: 1974.32361 | L129: 2014-05-02 | M129: 1974.32361 | N129: 17 | V129: 4500 | AC129: -2525.67639 | AD129: 0
A130: 2014-05-03 | B130: 2014-05-03 | D130: 5394100 | E130: 5100 | G130: 947 | I130: 275.4346995 | J130: 5375.4347 | L130: 2014-05-03 | M130: 5375.4347 | N130: 17 | O130: =AVERAGE(M124:M130) -> 3865.345531 | P130: =+A130 -> 2014-05-03 | R130: =AVERAGE(G124:G130) -> 961.4285714 | U130: 3 | V130: =+U130*$U$4 -> 4500 | Y130: 250 | Z130: =24*60/(V130/Y130) -> 80 | AA130: =+Y130/$AA$3 -> 2.636821621 | AC130: 875.4346995 | AD130: 875.4346995 | AH130: 125 | AI130: =24*60/(V130/AH130) -> 40 | AJ130: =+AH130/$AJ$3 -> 
A131: 2014-05-04 | B131: 2014-05-04 | D131: 5397400 | E131: 3300 | G131: 1165 | I131: 338.8399419 | J131: 3638.839942 | L131: 2014-05-04 | M131: 3638.839942 | N131: 18 | V131: 4500 | AC131: -861.1600581 | AD131: 14.27464138
A132: 2014-05-05 | B132: 2014-05-05 | D132: 5401200 | E132: 3800 | G132: 980 | I132: 285.0327408 | J132: 4085.032741 | L132: 2014-05-05 | M132: 4085.032741 | N132: 18 | V132: 4500 | AC132: -414.9672592 | AD132: 0
A133: 2014-05-06 | B133: 2014-05-06 | D133: 5404000 | E133: 2800 | G133: 962 | I133: 279.7974456 | J133: 3079.797446 | L133: 2014-05-06 | M133: 3079.797446 | N133: 18 | V133: 4500 | AC133: -1420.202554 | AD133: 0
A134: 2014-05-07 | B134: 2014-05-07 | D134: 5406300 | E134: 2300 | G134: 961 | I134: 279.5065958 | J134: 2579.506596 | L134: 2014-05-07 | M134: 2579.506596 | N134: 18 | V134: 4500 | AC134: -1920.493404 | AD134: 0
A135: 2014-05-08 | B135: 2014-05-08 | D135: 5409400 | E135: 3100 | G135: 1076 | I135: 312.9543154 | J135: 3412.954315 | L135: 2014-05-08 | M135: 3412.954315 | N135: 18 | V135: 4500 | AC135: -1087.045685 | AD135: 0
A136: 2014-05-09 | B136: 2014-05-09 | D136: 5412400 | E136: 3000 | G136: 1375 | I136: 399.9183863 | J136: 3399.918386 | L136: 2014-05-09 | M136: 3399.918386 | N136: 18 | V136: 4500 | AC136: -1100.081614 | AD136: 0
A137: 2014-05-10 | B137: 2014-05-10 | D137: 5417000 | E137: 4600 | G137: 1035 | I137: 301.0294762 | J137: 4901.029476 | L137: 2014-05-10 | M137: 4901.029476 | N137: 18 | O137: =AVERAGE(M131:M137) -> 3585.296986 | P137: =+A137 -> 2014-05-10 | R137: =AVERAGE(G131:G137) -> 1079.142857 | U137: 3 | V137: =+U137*$U$4 -> 4500 | Y137: 250 | Z137: =24*60/(V137/Y137) -> 80 | AA137: =+Y137/$AA$3 -> 2.636821621 | AC137: 401.0294762 | AD137: 401.0294762 | AH137: 125 | AI137: =24*60/(V137/AH137) -> 40 | AJ137: =+AH137/$AJ$3 -> 
A138: 2014-05-11 | B138: 2014-05-11 | D138: 5420800 | E138: 3800 | G138: 1189 | I138: 345.8203355 | J138: 4145.820336 | L138: 2014-05-11 | M138: 4145.820336 | N138: 19 | V138: 4500 | AC138: -354.1796645 | AD138: 46.84981175
A139: 2014-05-12 | B139: 2014-05-12 | D139: 5424800 | E139: 4000 | G139: 1066 | I139: 310.045818 | J139: 4310.045818 | L139: 2014-05-12 | M139: 4310.045818 | N139: 19 | V139: 4500 | AC139: -189.954182 | AD139: 0
A140: 2014-05-13 | B140: 2014-05-13 | D140: 5427600 | E140: 2800 | G140: 1046 | I140: 304.2288233 | J140: 3104.228823 | L140: 2014-05-13 | M140: 3104.228823 | N140: 19 | V140: 4500 | AC140: -1395.771177 | AD140: 0
A141: 2014-05-14 | B141: 2014-05-14 | D141: 5430300 | E141: 2700 | G141: 1048 | I141: 304.8105228 | J141: 3004.810523 | L141: 2014-05-14 | M141: 3004.810523 | N141: 19 | V141: 4500 | AC141: -1495.189477 | AD141: 0
A142: 2014-05-15 | B142: 2014-05-15 | D142: 5433300 | E142: 3000 | G142: 1246 | I142: 362.3987704 | J142: 3362.39877 | L142: 2014-05-15 | M142: 3362.39877 | N142: 19 | V142: 4500 | AC142: -1137.60123 | AD142: 0
A143: 2014-05-16 | B143: 2014-05-16 | D143: 5436600 | E143: 3300 | G143: 1511 | I143: 439.4739503 | J143: 3739.47395 | L143: 2014-05-16 | M143: 3739.47395 | N143: 19 | V143: 4500 | AC143: -760.5260497 | AD143: 0
A144: 2014-05-17 | B144: 2014-05-17 | D144: 5441200 | E144: 4600 | G144: 1160 | I144: 337.3856932 | J144: 4937.385693 | L144: 2014-05-17 | M144: 4937.385693 | N144: 19 | O144: =AVERAGE(M138:M144) -> 3800.594845 | P144: =+A144 -> 2014-05-17 | R144: =AVERAGE(G138:G144) -> 1180.857143 | U144: 3 | V144: =+U144*$U$4 -> 4500 | Y144: 250 | Z144: =24*60/(V144/Y144) -> 80 | AA144: =+Y144/$AA$3 -> 2.636821621 | AC144: 437.3856932 | AD144: 437.3856932 | AH144: 125 | AI144: =24*60/(V144/AH144) -> 40 | AJ144: =+AH144/$AJ$3 -> 
A145: 2014-05-18 | B145: 2014-05-18 | D145: 5445000 | E145: 3800 | G145: 1320 | I145: 383.9216509 | J145: 4183.921651 | L145: 2014-05-18 | M145: 4183.921651 | N145: 20 | V145: 4500 | AC145: -316.0783491 | AD145: 121.307344 | AO145: Pump Rate | AP145: 89 | AQ145: gal/min
A146: 2014-05-19 | B146: 2014-05-19 | D146: 5450100 | E146: 5100 | G146: 1181 | I146: 343.4935376 | J146: 5443.493538 | L146: 2014-05-19 | M146: 5443.493538 | N146: 20 | V146: 4500 | AC146: 943.4935376 | AD146: 1064.800882 | AO146: Cycle | AP146: 20 | AQ146: min
A147: 2014-05-20 | B147: 2014-05-20 | D147: 5452300 | E147: 2200 | G147: 1034 | I147: 300.7386265 | J147: 2500.738627 | L147: 2014-05-20 | M147: 2500.738627 | N147: 20 | V147: 4500 | AC147: =+M147-V147 -> -1999.261373 | AD147: 0 | AO147: Stnd cycle | AP147: 150 | AQ147: sec
A148: 2014-05-21 | B148: 2014-05-21 | D148: 5455000 | E148: 2700 | G148: 1113 | I148: 323.7157556 | J148: 3023.715756 | L148: 2014-05-21 | M148: 3023.715756 | N148: =1+N141 -> 20 | V148: 4500 | AC148: -1476.284244 | AD148: =IF(+AC148+AD147<0,0,+AC148+AD147) -> 0
A149: 2014-05-22 | B149: 2014-05-22 | D149: 5458100 | E149: 3100 | G149: 1297 | I149: 377.2321069 | J149: 3477.232107 | L149: 2014-05-22 | M149: 3477.232107 | N149: 20 | V149: 4500 | AC149: -1022.767893 | AD149: 0 | AO149: % of 150 | AP149: Vol/cycle | AQ149: Cycles/day | AR149: Vol
A150: 2014-05-23 | B150: 2014-05-23 | D150: 5462000 | E150: 3900 | G150: 1843 | I150: 536.0360625 | J150: 4436.036063 | L150: 2014-05-23 | M150: 4436.036063 | N150: 20 | V150: 4500 | AC150: -63.96393747 | AD150: 0 | AN150: M1 | AO150: 0.55 | AP150: =AO150*AP$145*AP$147/60 -> 122.375 | AQ150: =24*60/(AP$146*6) -> 12 | AR150: =AP150*AQ150 -> 1468.5
A151: 2014-05-24 | B151: 2014-05-24 | D151: 5468600 | E151: 6600 | G151: 1397 | I151: 406.3170805 | J151: 7006.31708 | L151: 2014-05-24 | M151: 7006.31708 | N151: 20 | O151: =AVERAGE(M145:M151) -> 4295.922117 | P151: =+A151 -> 2014-05-24 | R151: =AVERAGE(G145:G151) -> 1312.142857 | U151: 5 | V151: =+U151*$U$4 -> 7500 | W151: =(24*60)/X151*Y151 -> 7584.889262 | X151: 45 | Y151: =+AA151*AA$3 -> 237.0277894 | Z151: =24*60/(+V151/Y151) -> 45.50933557 | AA151: 2.5 | AC151: -493.6829195 | AD151: 0 | AE151: Summer | AF151: =(24*60)/AG151*AH151 ->  | AG151: 24 | AH151: =+AJ151*AJ$3 ->  | AI151: =24*60/(+V151/AH151) ->  | AJ151: 4 | AN151: M2 | AO151: 0.65 | AP151: =AO151*AP$145*AP$147/60 -> 144.625 | AQ151: =24*60/(AP$146*6) -> 12 | AR151: =AP151*AQ151 -> 1735.5
A152: 2014-05-25 | B152: 2014-05-25 | D152: 5473600 | E152: 5000 | G152: 965 | I152: 280.6699948 | J152: 5280.669995 | L152: 2014-05-25 | M152: 5280.669995 | N152: 21 | P152: Peak | U152: 6 | V152: =+U152*$U$4 -> 9000 | W152: =(24*60)/X152*Y152 -> 8982.105705 | X152: 38 | Y152: =+AA152*AA$3 -> 237.0277894 | Z152: =24*60/(+V152/Y152) -> 37.92444631 | AA152: 2.5 | AC152: -3719.330005 | AD152: 0 | AE152: Peak | AF152: =(24*60)/AG152*AH152 ->  | AG152: 20 | AH152: =+AJ152*AJ$3 ->  | AI152: =24*60/(+V152/AH152) ->  | AJ152: 6 | AN152: M3 | AO152: 0.65 | AP152: 144.625 | AQ152: 12 | AR152: 1735.5
A153: 2014-05-26 | B153: 2014-05-26 | D153: 5477200 | E153: 3600 | G153: 1312 | I153: 381.594853 | J153: 3981.594853 | L153: 2014-05-26 | M153: 3981.594853 | N153: 21 | V153: 9000 | AC153: -5018.405147 | AD153: 0 | AN153: M4 | AO153: 0.55 | AP153: 122.375 | AQ153: 12 | AR153: 1468.5
A154: 2014-05-27 | B154: 2014-05-27 | D154: 5482000 | E154: 4800 | G154: 1043 | I154: 303.3562741 | J154: 5103.356274 | L154: 2014-05-27 | M154: 5103.356274 | N154: 21 | V154: 9000 | AC154: -3896.643726 | AD154: 0 | AN154: M5 | AO154: 0.55 | AP154: 122.375 | AQ154: 12 | AR154: 1468.5
A155: 2014-05-28 | B155: 2014-05-28 | D155: 5484700 | E155: 2700 | G155: 1118 | I155: 325.1700043 | J155: 3025.170004 | L155: 2014-05-28 | M155: 3025.170004 | N155: 21 | V155: 9000 | AC155: -5974.829996 | AD155: 0 | AN155: M6 | AO155: 0.55 | AP155: 122.375 | AQ155: 12 | AR155: 1468.5
A156: 2014-05-29 | B156: 2014-05-29 | D156: 5487500 | E156: 2800 | G156: 1201 | I156: 349.3105323 | J156: 3149.310532 | L156: 2014-05-29 | M156: 3149.310532 | N156: 21 | V156: 9000 | AC156: -5850.689468 | AD156: 0 | AR156: =SUM(AR150:AR155) -> 9345
A157: 2014-05-30 | B157: 2014-05-30 | D157: 5490600 | E157: 3100 | G157: 1355 | I157: 394.1013916 | J157: 3494.101392 | L157: 2014-05-30 | M157: 3494.101392 | N157: 21 | V157: 9000 | AC157: -5505.898608 | AD157: 0
A158: 2014-05-31 | B158: 2014-05-31 | D158: 5495000 | E158: 4400 | G158: 1186 | I158: 344.9477863 | J158: 4744.947786 | L158: =+B158 -> 2014-05-31 | M158: =+J158 -> 4744.947786 | N158: 21 | O158: =AVERAGE(M152:M158) -> 4111.307262 | P158: =+A158 -> 2014-05-31 | R158: =AVERAGE(G152:G158) -> 1168.571429 | U158: 6 | V158: =+U158*$U$4 -> 9000 | Y158: 250 | Z158: =24*60/(V158/Y158) -> 40 | AA158: =+Y158/$AA$3 -> 2.636821621 | AC158: -4255.052214 | AD158: 0 | AH158: 125 | AI158: =24*60/(V158/AH158) -> 20 | AJ158: =+AH158/$AJ$3 -> 
A159: 2014-06-01 | B159: 2014-06-01 | D159: 5499000 | E159: 4000 | G159: 1111 | I159: =+G159*$H$4 -> 323.1340561 | J159: =+I159+E159 -> 4323.134056 | L159: 2014-06-01 | M159: 4323.134056 | N159: 22 | V159: 9000 | AC159: -4676.865944 | AD159: 0
A160: 2014-06-02 | B160: 2014-06-02 | D160: 5502700 | E160: 3700 | G160: 1116 | I160: 324.5883048 | J160: 4024.588305 | L160: 2014-06-02 | M160: 4024.588305 | N160: 22 | V160: 9000 | AC160: -4975.411695 | AD160: 0
A161: 2014-06-03 | B161: 2014-06-03 | D161: 5505500 | E161: 2800 | G161: 1084 | I161: 315.2811133 | J161: 3115.281113 | L161: 2014-06-03 | M161: 3115.281113 | N161: 22 | V161: 9000 | AC161: -5884.718887 | AD161: 0
A162: 2014-06-04 | B162: 2014-06-04 | D162: 5508400 | E162: 2900 | G162: 1190 | I162: 346.1111852 | J162: 3246.111185 | L162: 2014-06-04 | M162: 3246.111185 | N162: 22 | V162: 9000 | AC162: -5753.888815 | AD162: 0
A163: 2014-06-05 | B163: 2014-06-05 | D163: 5511800 | E163: 3400 | G163: 1298 | I163: 377.5229567 | J163: 3777.522957 | L163: 2014-06-05 | M163: 3777.522957 | N163: 22 | V163: 9000 | AC163: -5222.477043 | AD163: 0
A164: 2014-06-06 | B164: 2014-06-06 | D164: 5516000 | E164: 4200 | G164: 1554 | I164: 451.980489 | J164: 4651.980489 | L164: 2014-06-06 | M164: 4651.980489 | N164: 22 | V164: 9000 | AC164: -4348.019511 | AD164: 0
A165: 2014-06-07 | B165: 2014-06-07 | D165: 5522100 | E165: 6100 | G165: 1205 | I165: 350.4739313 | J165: 6450.473931 | L165: 2014-06-07 | M165: 6450.473931 | N165: 22 | O165: =AVERAGE(M159:M165) -> 4227.013148 | P165: =+A165 -> 2014-06-07 | R165: =AVERAGE(G159:G165) -> 1222.571429 | U165: 6 | V165: =+U165*$U$4 -> 9000 | Y165: 250 | Z165: =24*60/(V165/Y165) -> 40 | AA165: =+Y165/$AA$3 -> 2.636821621 | AC165: -2549.526069 | AD165: 0 | AH165: 125 | AI165: =24*60/(V165/AH165) -> 20 | AJ165: =+AH165/$AJ$3 -> 
A166: 2014-06-08 | B166: 2014-06-08 | D166: 5526200 | E166: 4100 | G166: 1286 | I166: 374.0327599 | J166: 4474.03276 | L166: 2014-06-08 | M166: 4474.03276 | N166: 23 | V166: 9000 | AC166: -4525.96724 | AD166: 0
A167: 2014-06-09 | B167: 2014-06-09 | D167: 5530700 | E167: 4500 | G167: 1211 | I167: 352.2190297 | J167: 4852.21903 | L167: 2014-06-09 | M167: 4852.21903 | N167: 23 | V167: 9000 | AC167: -4147.78097 | AD167: 0
A168: 2014-06-10 | B168: 2014-06-10 | D168: 5534300 | E168: 3600 | G168: 1126 | I168: 327.4968022 | J168: 3927.496802 | L168: 2014-06-10 | M168: 3927.496802 | N168: 23 | V168: 9000 | AC168: -5072.503198 | AD168: 0
A169: 2014-06-11 | B169: 2014-06-11 | D169: 5537700 | E169: 3400 | G169: 1179 | I169: 342.9118382 | J169: 3742.911838 | L169: 2014-06-11 | M169: 3742.911838 | N169: 23 | V169: 9000 | AC169: -5257.088162 | AD169: 0
A170: 2014-06-12 | B170: 2014-06-12 | D170: 5541000 | E170: 3300 | G170: 1298 | I170: 377.5229567 | J170: 3677.522957 | L170: 2014-06-12 | M170: 3677.522957 | N170: 23 | V170: 9000 | AC170: -5322.477043 | AD170: 0
A171: 2014-06-13 | B171: 2014-06-13 | D171: 5544900 | E171: 3900 | G171: 1660 | I171: 482.8105609 | J171: 4382.810561 | L171: 2014-06-13 | M171: 4382.810561 | N171: 23 | V171: 9000 | AC171: -4617.189439 | AD171: 0
A172: 2014-06-14 | B172: 2014-06-14 | D172: 5551000 | E172: 6100 | G172: 1438 | I172: 418.2419197 | J172: 6518.24192 | L172: 2014-06-14 | M172: 6518.24192 | N172: 23 | O172: =AVERAGE(M166:M172) -> 4510.747981 | P172: =+A172 -> 2014-06-14 | R172: =AVERAGE(G166:G172) -> 1314 | U172: 6 | V172: =+U172*$U$4 -> 9000 | Y172: 250 | Z172: =24*60/(V172/Y172) -> 40 | AA172: =+Y172/$AA$3 -> 2.636821621 | AC172: -2481.75808 | AD172: 0 | AH172: 125 | AI172: =24*60/(V172/AH172) -> 20 | AJ172: =+AH172/$AJ$3 -> 
A173: 2014-06-15 | B173: 2014-06-15 | D173: 5556500 | E173: 5500 | G173: 1483 | I173: 431.3301577 | J173: 5931.330158 | L173: 2014-06-15 | M173: 5931.330158 | N173: 24 | V173: 9000 | AC173: -3068.669842 | AD173: 0
A174: 2014-06-16 | B174: 2014-06-16 | D174: 5561400 | E174: 4900 | G174: 1359 | I174: 395.2647905 | J174: 5295.264791 | L174: 2014-06-16 | M174: 5295.264791 | N174: 24 | V174: =+V173 -> 9000 | AC174: -3704.735209 | AD174: 0
A175: 2014-06-17 | B175: 2014-06-17 | D175: 5566400 | E175: 5000 | G175: 1141 | I175: 331.8595482 | J175: 5331.859548 | L175: 2014-06-17 | M175: 5331.859548 | N175: 24 | V175: 9000 | AC175: -3668.140452 | AD175: 0
A176: 2014-06-18 | B176: 2014-06-18 | D176: 5569700 | E176: 3300 | G176: 1272 | I176: 369.9608636 | J176: 3669.960864 | L176: 2014-06-18 | M176: 3669.960864 | N176: 24 | V176: 9000 | AC176: -5330.039136 | AD176: 0
A177: 2014-06-19 | B177: 2014-06-19 | D177: 5573400 | E177: 3700 | G177: 1350 | I177: 392.6471429 | J177: 4092.647143 | L177: 2014-06-19 | M177: 4092.647143 | N177: 24 | V177: 9000 | AC177: -4907.352857 | AD177: 0
A178: 2014-06-20 | B178: 2014-06-20 | D178: 5578100 | E178: 4700 | G178: 1771 | I178: 515.0948816 | J178: 5215.094882 | L178: 2014-06-20 | M178: 5215.094882 | N178: 24 | V178: 9000 | AC178: -3784.905118 | AD178: 0
A179: 2014-06-21 | B179: 2014-06-21 | D179: 5584000 | E179: 5900 | G179: 1395 | I179: 405.735381 | J179: 6305.735381 | L179: 2014-06-21 | M179: 6305.735381 | N179: 24 | O179: =AVERAGE(M173:M179) -> 5120.270395 | P179: =+A179 -> 2014-06-21 | R179: =AVERAGE(G173:G179) -> 1395.857143 | U179: 6 | V179: =+U179*$U$4 -> 9000 | Y179: 250 | Z179: =24*60/(V179/Y179) -> 40 | AA179: =+Y179/$AA$3 -> 2.636821621 | AC179: -2694.264619 | AD179: 0 | AH179: 125 | AI179: =24*60/(V179/AH179) -> 20 | AJ179: =+AH179/$AJ$3 -> 
A180: 2014-06-22 | B180: 2014-06-22 | D180: 5589700 | E180: 5700 | G180: 1597 | I180: 464.4870276 | J180: 6164.487028 | L180: 2014-06-22 | M180: 6164.487028 | N180: 25 | V180: =+V179 -> 9000 | AC180: -2835.512972 | AD180: 0
A181: 2014-06-23 | B181: 2014-06-23 | D181: 5596200 | E181: 6500 | G181: 1541 | I181: 448.1994424 | J181: 6948.199442 | L181: 2014-06-23 | M181: 6948.199442 | N181: 25 | V181: 9000 | AC181: -2051.800558 | AD181: 0
A182: 2014-06-24 | B182: 2014-06-24 | D182: 5601800 | E182: 5600 | G182: 1191 | I182: 346.402035 | J182: 5946.402035 | L182: 2014-06-24 | M182: 5946.402035 | N182: 25 | V182: 9000 | AC182: -3053.597965 | AD182: 0
A183: 2014-06-25 | B183: 2014-06-25 | D183: 5605400 | E183: 3600 | G183: 1343 | I183: 390.6111948 | J183: 3990.611195 | L183: 2014-06-25 | M183: 3990.611195 | N183: 25 | V183: 9000 | AC183: -5009.388805 | AD183: 0
A184: 2014-06-26 | B184: 2014-06-26 | D184: 5609800 | E184: 4400 | G184: 1419 | I184: 412.7157747 | J184: 4812.715775 | L184: 2014-06-26 | M184: 4812.715775 | N184: 25 | V184: 9000 | AC184: -4187.284225 | AD184: 0
A185: 2014-06-27 | B185: 2014-06-27 | D185: 5614500 | E185: 4700 | G185: 1651 | I185: 480.1929133 | J185: 5180.192913 | L185: 2014-06-27 | M185: 5180.192913 | N185: 25 | V185: 9000 | AC185: -3819.807087 | AD185: 0
A186: 2014-06-28 | B186: 2014-06-28 | D186: 5620500 | E186: =+D186-D185 -> 6000 | G186: 1502 | I186: 436.8563027 | J186: 6436.856303 | L186: 2014-06-28 | M186: 6436.856303 | N186: 25 | O186: =AVERAGE(M180:M186) -> 5639.923527 | P186: =+A186 -> 2014-06-28 | R186: =AVERAGE(G180:G186) -> 1463.428571 | U186: 6 | V186: =+U186*$U$4 -> 9000 | Y186: 250 | Z186: =24*60/(V186/Y186) -> 40 | AA186: =+Y186/$AA$3 -> 2.636821621 | AC186: -2563.143697 | AD186: 0 | AH186: 125 | AI186: =24*60/(V186/AH186) -> 20 | AJ186: =+AH186/$AJ$3 -> 
A187: 2014-06-29 | B187: 2014-06-29 | D187: 5626000 | E187: 5500 | G187: 1598 | I187: 464.7778773 | J187: 5964.777877 | L187: 2014-06-29 | M187: 5964.777877 | N187: 26 | V187: =+V186 -> 9000 | AC187: -3035.222123 | AD187: 0
A188: 2014-06-30 | B188: 2014-06-30 | D188: 5634000 | E188: 8000 | G188: 1261 | I188: 366.7615165 | J188: 8366.761516 | L188: 2014-06-30 | M188: 8366.761516 | N188: 26 | V188: 9000 | AC188: -633.2384835 | AD188: 0
A189: 2014-07-01 | B189: 2014-07-01 | D189: 5638300 | E189: 4300 | G189: 1282 | I189: 372.8693609 | J189: 4672.869361 | L189: 2014-07-01 | M189: 4672.869361 | N189: 26 | V189: 9000 | AC189: -4327.130639 | AD189: 0
A190: 2014-07-02 | B190: 2014-07-02 | D190: 5642100 | E190: 3800 | G190: 1478 | I190: 429.8759091 | J190: 4229.875909 | L190: 2014-07-02 | M190: 4229.875909 | N190: 26 | V190: 9000 | AC190: -4770.124091 | AD190: 0
A191: 2014-07-03 | B191: 2014-07-03 | D191: 5647800 | E191: 5700 | G191: 2011 | I191: 584.8988181 | J191: 6284.898818 | L191: 2014-07-03 | M191: 6284.898818 | N191: 26 | V191: 9000 | AC191: -2715.101182 | AD191: 0
A192: 2014-07-04 | B192: 2014-07-04 | D192: 5656400 | E192: 8600 | G192: 1616 | I192: 470.0131726 | J192: 9070.013173 | L192: 2014-07-04 | M192: 9070.013173 | N192: 26 | V192: 9000 | AC192: 70.01317257 | AD192: 70.01317257
A193: 2014-07-05 | B193: 2014-07-05 | D193: 5663100 | E193: 6700 | G193: 1150 | I193: 334.4771958 | J193: 7034.477196 | L193: 2014-07-05 | M193: 7034.477196 | N193: 26 | O193: =AVERAGE(M187:M193) -> 6517.667693 | P193: =+A193 -> 2014-07-05 | R193: =AVERAGE(G187:G193) -> 1485.142857 | U193: 6 | V193: =+U193*$U$4 -> 9000 | Y193: 250 | Z193: =24*60/(V193/Y193) -> 40 | AA193: =+Y193/$AA$3 -> 2.636821621 | AC193: -1965.522804 | AD193: 0 | AH193: 125 | AI193: =24*60/(V193/AH193) -> 20 | AJ193: =+AH193/$AJ$3 -> 
A194: 2014-07-06 | B194: 2014-07-06 | D194: 5667800 | E194: 4700 | G194: 1721 | I194: 500.5523948 | J194: 5200.552395 | L194: 2014-07-06 | M194: 5200.552395 | N194: 27 | V194: =+V193 -> 9000 | AC194: -3799.447605 | AD194: 0
A195: 2014-07-07 | B195: 2014-07-07 | D195: 5674800 | E195: 7000 | G195: 1433 | I195: 416.787671 | J195: 7416.787671 | L195: 2014-07-07 | M195: 7416.787671 | N195: 27 | V195: 9000 | AC195: -1583.212329 | AD195: 0
A196: 2014-07-08 | B196: 2014-07-08 | D196: 5679300 | E196: 4500 | G196: 1257 | I196: 365.5981175 | J196: 4865.598118 | L196: 2014-07-08 | M196: 4865.598118 | N196: 27 | V196: 9000 | AC196: -4134.401882 | AD196: 0
A197: 2014-07-09 | B197: 2014-07-09 | D197: 5683000 | E197: 3700 | G197: 1215 | I197: 353.3824286 | J197: 4053.382429 | L197: 2014-07-09 | M197: 4053.382429 | N197: 27 | V197: 9000 | AC197: -4946.617571 | AD197: 0
A198: 2014-07-10 | B198: 2014-07-10 | D198: 5686300 | E198: 3300 | G198: 1456 | I198: 423.4772149 | J198: 3723.477215 | L198: 2014-07-10 | M198: 3723.477215 | N198: 27 | V198: 9000 | AC198: -5276.522785 | AD198: 0
A199: 2014-07-11 | B199: 2014-07-11 | D199: 5691500 | E199: 5200 | G199: 1711 | I199: 497.6438974 | J199: 5697.643897 | L199: 2014-07-11 | M199: 5697.643897 | N199: 27 | V199: 9000 | AC199: -3302.356103 | AD199: 0
A200: 2014-07-12 | B200: 2014-07-12 | D200: 5698700 | E200: 7200 | G200: 1436 | I200: 417.6602202 | J200: 7617.66022 | L200: 2014-07-12 | M200: 7617.66022 | N200: 27 | O200: =AVERAGE(M194:M200) -> 5510.728849 | P200: =+A200 -> 2014-07-12 | R200: =AVERAGE(G194:G200) -> 1461.285714 | U200: 6 | V200: =+U200*$U$4 -> 9000 | Y200: 250 | Z200: =24*60/(V200/Y200) -> 40 | AA200: =+Y200/$AA$3 -> 2.636821621 | AC200: -1382.33978 | AD200: 0 | AH200: 125 | AI200: =24*60/(V200/AH200) -> 20 | AJ200: =+AH200/$AJ$3 -> 
... 172 more rows

Sheet 2015
A1: Water Meter Readings
A2: Juneau County | G2: Estimate
A3: Rest Area #10
G4: Est. waste contrib/Veh | H4: 0.2908497355 | I4: gal/veh | J4: See RA 13 analysis
A6: Date | B6: Day of Week | D6: Meter Reading (gal) | E6: H2O Use | G6: Traffic | I6: Waste Contrib | J6: Est Total | L6: 2015 Wkly Ave flow | M6: 2015 Wkly Peak | O6: 2014 Wkly Ave flow | P6: Increase | R6: 2015 7-day ave traffic | S6: 2014 7-day ave traffic | T6: Increase
D7: 6340400
A8: 2015-01-01 | B8: =+A8 -> 2015-01-01 | D8: 6343700 | E8: =+D8-D7 -> 3300 | G8: 1000 | I8: =+G8*$H$4 -> 290.8497355 | J8: =+I8+E8 -> 3590.849736
A9: 2015-01-02 | B9: =+A9 -> 2015-01-02 | D9: 6347000 | E9: =+D9-D8 -> 3300 | G9: 1000 | I9: =+G9*$H$4 -> 290.8497355 | J9: =+I9+E9 -> 3590.849736
A10: 2015-01-03 | B10: 2015-01-03 | D10: 6350500 | E10: 3500 | G10: 1000 | I10: 290.8497355 | J10: =+I10+E10 -> 3790.849736
A11: 2015-01-04 | B11: 2015-01-04 | D11: 6353300 | E11: 2800 | G11: 1000 | I11: 290.8497355 | J11: =+I11+E11 -> 3090.849736
A12: 2015-01-05 | B12: 2015-01-05 | D12: 6356000 | E12: 2700 | G12: 600 | I12: 174.5098413 | J12: =+I12+E12 -> 2874.509841
A13: 2015-01-06 | B13: 2015-01-06 | D13: 6358000 | E13: 2000 | G13: 635 | I13: 184.689582 | J13: =+I13+E13 -> 2184.689582 | X13: 01/06/15 | Z13: 635
A14: 2015-01-07 | B14: 2015-01-07 | D14: 6360600 | E14: 2600 | G14: 658 | I14: 191.379126 | J14: =+I14+E14 -> 2791.379126 | X14: 01/07/15 | Z14: 658
A15: 2015-01-08 | B15: 2015-01-08 | D15: 6363100 | E15: 2500 | G15: 644 | I15: 187.3072297 | J15: =+I15+E15 -> 2687.30723 | X15: 01/08/15 | Z15: 644
A16: 2015-01-09 | B16: 2015-01-09 | D16: 6364700 | E16: 1600 | G16: 749 | I16: 217.8464519 | J16: =+I16+E16 -> 1817.846452 | X16: 01/09/15 | Z16: 749
A17: 2015-01-10 | B17: 2015-01-10 | D17: 6367200 | E17: 2500 | G17: 578 | I17: 168.1111471 | J17: =+I17+E17 -> 2668.111147 | L17: =AVERAGE(J11:J17) -> 2587.813302 | M17: =MAX(J11:J17) -> 3090.849736 | O17: =+'2014'!O18 -> 2400.04065 | P17: =(M17-O17)/O17 -> 0.2878322438 | R17: =AVERAGE(G11:G17) -> 694.8571429 | S17: =+'2014'!R18 -> 540.4285714 | T17: =(R17-S17)/S17 -> 0.2857520486 | X17: 01/10/15 | Z17: 578
A18: 2015-01-11 | B18: 2015-01-11 | D18: 6369400 | E18: 2200 | G18: 669 | I18: 194.5784731 | J18: =+I18+E18 -> 2394.578473 | X18: 01/11/15 | Z18: 669
A19: 2015-01-12 | B19: 2015-01-12 | D19: 6371600 | E19: 2200 | G19: 670 | I19: 194.8693228 | J19: =+I19+E19 -> 2394.869323 | X19: 01/12/15 | Z19: 670
A20: 2015-01-13 | B20: 2015-01-13 | D20: 6373400 | E20: 1800 | G20: 664 | I20: 193.1242244 | J20: =+I20+E20 -> 1993.124224 | X20: 01/13/15 | Z20: 664
A21: 2015-01-14 | B21: 2015-01-14 | D21: 6375800 | E21: 2400 | G21: 723 | I21: 210.2843588 | J21: =+I21+E21 -> 2610.284359 | X21: 01/14/15 | Z21: 723
A22: 2015-01-15 | B22: 2015-01-15 | D22: 6377400 | E22: 1600 | G22: 831 | I22: 241.6961302 | J22: =+I22+E22 -> 1841.69613 | X22: 01/15/15 | Z22: 831
A23: 2015-01-16 | B23: 2015-01-16 | D23: 6379400 | E23: 2000 | G23: 893 | I23: 259.7288138 | J23: =+I23+E23 -> 2259.728814 | X23: 01/16/15 | Z23: 893
A24: 2015-01-17 | B24: 2015-01-17 | D24: 6381900 | E24: 2500 | G24: 699 | I24: 203.3039651 | J24: =+I24+E24 -> 2703.303965 | L24: =AVERAGE(J18:J24) -> 2313.940755 | M24: =MAX(J18:J24) -> 2703.303965 | O24: =+'2014'!O25 -> 2025.559799 | P24: =(M24-O24)/O24 -> 0.3345959798 | R24: =AVERAGE(G18:G24) -> 735.5714286 | S24: =+'2014'!R25 -> 677.2857143 | T24: =(R24-S24)/S24 -> 0.08605779371 | X24: 01/17/15 | Z24: 699
A25: 2015-01-18 | B25: 2015-01-18 | D25: 6381900 | E25: 0 | G25: 691 | I25: 200.9771672 | J25: =+I25+E25 -> 200.9771672 | X25: 01/18/15 | Z25: 691
A26: 2015-01-19 | B26: 2015-01-19 | D26: 6383800 | E26: 1900 | G26: 769 | I26: 223.6634466 | J26: =+I26+E26 -> 2123.663447 | X26: 01/19/15 | Z26: 769
A27: 2015-01-20 | B27: 2015-01-20 | D27: 6385400 | E27: 1600 | G27: 721 | I27: 209.7026593 | J27: =+I27+E27 -> 1809.702659 | X27: 01/20/15 | Z27: 721
A28: 2015-01-21 | B28: 2015-01-21 | D28: 6386800 | E28: 1400 | G28: 746 | I28: 216.9739027 | J28: =+I28+E28 -> 1616.973903 | X28: 01/21/15 | Z28: 746
A29: 2015-01-22 | B29: 2015-01-22 | D29: 6388400 | E29: 1600 | G29: 768 | I29: 223.3725969 | J29: =+I29+E29 -> 1823.372597 | X29: 01/22/15 | Z29: 768
A30: 2015-01-23 | B30: 2015-01-23 | D30: 6390100 | E30: 1700 | G30: 872 | I30: 253.6209694 | J30: =+I30+E30 -> 1953.620969 | X30: 01/23/15 | Z30: 872
A31: 2015-01-24 | B31: 2015-01-24 | D31: 6392300 | E31: 2200 | G31: 708 | I31: 205.9216127 | J31: =+I31+E31 -> 2405.921613 | L31: =AVERAGE(J25:J31) -> 1704.890336 | M31: =MAX(J25:J31) -> 2405.921613 | O31: =+'2014'!O32 -> 1972.689116 | P31: =(M31-O31)/O31 -> 0.2196151911 | R31: =AVERAGE(G25:G31) -> 753.5714286 | S31: =+'2014'!R32 -> 642.8571429 | T31: =(R31-S31)/S31 -> 0.1722222222 | X31: 01/24/15 | Z31: 708
A32: 2015-01-25 | B32: 2015-01-25 | D32: 6394500 | E32: 2200 | G32: 689 | I32: 200.3954678 | J32: =+I32+E32 -> 2400.395468 | X32: 01/25/15 | Z32: 689
A33: 2015-01-26 | B33: 2015-01-26 | D33: 6396500 | E33: 2000 | G33: 747 | I33: 217.2647524 | J33: =+I33+E33 -> 2217.264752 | X33: 01/26/15 | Z33: 747
A34: 2015-01-27 | B34: 2015-01-27 | D34: 6397700 | E34: 1200 | G34: 738 | I34: 214.6471048 | J34: =+I34+E34 -> 1414.647105 | X34: 01/27/15 | Z34: 738
A35: 2015-01-28 | B35: 2015-01-28 | D35: 6399900 | E35: 2200 | G35: 706 | I35: 205.3399133 | J35: =+I35+E35 -> 2405.339913 | X35: 01/28/15 | Z35: 706
A36: 2015-01-29 | B36: 2015-01-29 | D36: 6401400 | E36: 1500 | G36: 765 | I36: 222.5000477 | J36: =+I36+E36 -> 1722.500048 | X36: 01/29/15 | Z36: 765
A37: 2015-01-30 | B37: 2015-01-30 | D37: 6403500 | E37: 2100 | G37: 880 | I37: 255.9477672 | J37: =+I37+E37 -> 2355.947767 | X37: 01/30/15 | Z37: 880
A38: 2015-01-31 | B38: 2015-01-31 | D38: 6405800 | E38: 2300 | G38: 643 | I38: 187.0163799 | J38: =+I38+E38 -> 2487.01638 | L38: =AVERAGE(J32:J38) -> 2143.301633 | M38: =MAX(J32:J38) -> 2487.01638 | O38: =+'2014'!O39 -> 1571.268944 | P38: =(M38-O38)/O38 -> 0.5828075703 | R38: =AVERAGE(G32:G38) -> 738.2857143 | S38: =+'2014'!R39 -> 588.8571429 | T38: =(R38-S38)/S38 -> 0.2537603105 | X38: 01/31/15 | Z38: 643
A39: 2015-02-01 | B39: 2015-02-01 | D39: 6407700 | E39: =+D39-D38 -> 1900 | G39: 434 | I39: 126.2287852 | J39: =+I39+E39 -> 2026.228785 | X39: 02/01/15 | Z39: 434
A40: 2015-02-02 | B40: 2015-02-02 | D40: 6408100 | E40: =+D40-D39 -> 400 | G40: 686 | I40: 199.5229186 | J40: =+I40+E40 -> 599.5229186 | X40: 02/02/15 | Z40: 686
A41: 2015-02-03 | B41: 2015-02-03 | D41: 6410300 | E41: 2200 | G41: 708 | I41: 205.9216127 | J41: =+I41+E41 -> 2405.921613 | X41: 02/03/15 | Z41: 708
A42: 2015-02-04 | B42: 2015-02-04 | D42: 6411700 | E42: 1400 | G42: 718 | I42: 208.8301101 | J42: =+I42+E42 -> 1608.83011 | X42: 02/04/15 | Z42: 718
A43: 2015-02-05 | B43: 2015-02-05 | D43: 6413500 | E43: 1800 | G43: 774 | I43: 225.1176953 | J43: =+I43+E43 -> 2025.117695 | X43: 02/05/15 | Z43: 774
A44: 2015-02-06 | B44: 2015-02-06 | D44: 6415400 | E44: 1900 | G44: 872 | I44: 253.6209694 | J44: =+I44+E44 -> 2153.620969 | X44: 02/06/15 | Z44: 872
A45: 2015-02-07 | B45: 2015-02-07 | D45: 6417600 | E45: 2200 | G45: 615 | I45: 178.8725873 | J45: =+I45+E45 -> 2378.872587 | L45: =AVERAGE(J39:J45) -> 1885.444954 | M45: =MAX(J39:J45) -> 2405.921613 | O45: =+'2014'!O46 -> 1638.923942 | P45: =(M45-O45)/O45 -> 0.4679885694 | R45: =AVERAGE(G39:G45) -> 686.7142857 | S45: =+'2014'!R46 -> 625 | T45: =(R45-S45)/S45 -> 0.09874285714 | X45: 02/07/15 | Z45: 615
A46: 2015-02-08 | B46: 2015-02-08 | D46: 6419600 | E46: 2000 | G46: 651 | I46: 189.3431778 | J46: =+I46+E46 -> 2189.343178 | X46: 02/08/15 | Z46: 651
A47: 2015-02-09 | B47: 2015-02-09 | D47: 6421500 | E47: 1900 | G47: 714 | I47: 207.6667111 | J47: =+I47+E47 -> 2107.666711 | X47: 02/09/15 | Z47: 714
A48: 2015-02-10 | B48: 2015-02-10 | D48: 6423100 | E48: 1600 | G48: 628 | I48: 182.6536339 | J48: =+I48+E48 -> 1782.653634 | X48: 02/10/15 | Z48: 628
A49: 2015-02-11 | B49: 2015-02-11 | D49: 6424300 | E49: 1200 | G49: 731 | I49: 212.6111567 | J49: =+I49+E49 -> 1412.611157 | X49: 02/11/15 | Z49: 731
A50: 2015-02-12 | B50: 2015-02-12 | D50: 6426300 | E50: 2000 | G50: 792 | I50: 230.3529905 | J50: =+I50+E50 -> 2230.352991 | X50: 02/12/15 | Z50: 792
A51: 2015-02-13 | B51: 2015-02-13 | D51: 6429000 | E51: 2700 | G51: 848 | I51: 246.6405757 | J51: =+I51+E51 -> 2946.640576 | X51: 02/13/15 | Z51: 848
A52: 2015-02-14 | B52: 2015-02-14 | D52: 6431300 | E52: 2300 | G52: 561 | I52: 163.1667016 | J52: =+I52+E52 -> 2463.166702 | L52: =AVERAGE(J46:J52) -> 2161.776421 | M52: =MAX(J46:J52) -> 2946.640576 | O52: =+'2014'!O53 -> 1807.659238 | P52: =(M52-O52)/O52 -> 0.6300863089 | R52: =AVERAGE(G46:G52) -> 703.5714286 | S52: =+'2014'!R53 -> 664.8571429 | T52: =(R52-S52)/S52 -> 0.05822948002 | X52: 02/14/15 | Z52: 561
A53: 2015-02-15 | B53: 2015-02-15 | D53: 6433500 | E53: 2200 | G53: 718 | I53: 208.8301101 | J53: =+I53+E53 -> 2408.83011 | X53: 02/15/15 | Z53: 718
A54: 2015-02-16 | B54: 2015-02-16 | D54: 6435800 | E54: 2300 | G54: 793 | I54: 230.6438403 | J54: =+I54+E54 -> 2530.64384 | X54: 02/16/15 | Z54: 793
A55: 2015-02-17 | B55: 2015-02-17 | D55: 6438000 | E55: 2200 | G55: 703 | I55: 204.4673641 | J55: =+I55+E55 -> 2404.467364 | X55: 02/17/15 | Z55: 703
A56: 2015-02-18 | B56: 2015-02-18 | D56: 6439300 | E56: 1300 | G56: 672 | I56: 195.4510223 | J56: =+I56+E56 -> 1495.451022 | X56: 02/18/15 | Z56: 672
A57: 2015-02-19 | B57: 2015-02-19 | D57: 6441700 | E57: 2400 | G57: 757 | I57: 220.1732498 | J57: =+I57+E57 -> 2620.17325 | X57: 02/19/15 | Z57: 757
A58: 2015-02-20 | B58: 2015-02-20 | D58: 6444000 | E58: 2300 | G58: 881 | I58: 256.238617 | J58: =+I58+E58 -> 2556.238617 | X58: 02/20/15 | Z58: 881
A59: 2015-02-21 | B59: 2015-02-21 | D59: 6446700 | E59: 2700 | G59: 585 | I59: 170.1470953 | J59: =+I59+E59 -> 2870.147095 | L59: =AVERAGE(J53:J59) -> 2412.278757 | M59: =MAX(J53:J59) -> 2870.147095 | O59: =+'2014'!O60 -> 1721.072404 | P59: =(M59-O59)/O59 -> 0.6676504076 | R59: =AVERAGE(G53:G59) -> 729.8571429 | S59: =+'2014'!R60 -> 661.8571429 | T59: =(R59-S59)/S59 -> 0.1027412044 | X59: 02/21/15 | Z59: 585
A60: 2015-02-22 | B60: 2015-02-22 | D60: 6449000 | E60: 2300 | G60: 758 | I60: 220.4640995 | J60: =+I60+E60 -> 2520.4641 | X60: 02/22/15 | Z60: 758
A61: 2015-02-23 | B61: 2015-02-23 | D61: 6451200 | E61: 2200 | G61: 735 | I61: 213.7745556 | J61: =+I61+E61 -> 2413.774556 | X61: 02/23/15 | Z61: 735
A62: 2015-02-24 | B62: 2015-02-24 | D62: 6453200 | E62: 2000 | G62: 728 | I62: 211.7386074 | J62: =+I62+E62 -> 2211.738607 | X62: 02/24/15 | Z62: 728
A63: 2015-02-25 | B63: 2015-02-25 | D63: 6455000 | E63: 1800 | G63: 747 | I63: 217.2647524 | J63: =+I63+E63 -> 2017.264752 | X63: 02/25/15 | Z63: 747
A64: 2015-02-26 | B64: 2015-02-26 | D64: 6457000 | E64: 2000 | G64: 766 | I64: 222.7908974 | J64: =+I64+E64 -> 2222.790897 | X64: 02/26/15 | Z64: 766
A65: 2015-02-27 | B65: 2015-02-27 | D65: 6459200 | E65: 2200 | G65: 828 | I65: 240.823581 | J65: =+I65+E65 -> 2440.823581 | X65: 02/27/15 | Z65: 828
A66: 2015-02-28 | B66: 2015-02-28 | D66: 6462000 | E66: 2800 | G66: 705 | I66: 205.0490635 | J66: =+I66+E66 -> 3005.049064 | L66: =AVERAGE(J60:J66) -> 2404.557937 | M66: =MAX(J60:J66) -> 3005.049064 | O66: =+'2014'!O67 -> 1886.359053 | P66: =(M66-O66)/O66 -> 0.5930419282 | R66: =AVERAGE(G60:G66) -> 752.4285714 | S66: =+'2014'!R67 -> 689.8571429 | T66: =(R66-S66)/S66 -> 0.0907020087 | X66: 02/28/15 | Z66: 705
A67: 2015-03-01 | B67: 2015-03-01 | D67: 6464800 | E67: =+D67-D66 -> 2800 | G67: 761 | I67: 221.3366487 | J67: =+I67+E67 -> 3021.336649 | X67: 03/01/15 | Z67: 761
A68: 2015-03-02 | B68: 2015-03-02 | D68: 6467500 | E68: =+D68-D67 -> 2700 | G68: 824 | I68: 239.6601821 | J68: =+I68+E68 -> 2939.660182 | X68: 03/02/15 | Z68: 824
A69: 2015-03-03 | B69: 2015-03-03 | D69: 6469600 | E69: 2100 | G69: 726 | I69: 211.156908 | J69: =+I69+E69 -> 2311.156908 | X69: 03/03/15 | Z69: 726
A70: 2015-03-04 | B70: 2015-03-04 | D70: 6471000 | E70: 1400 | G70: 777 | I70: 225.9902445 | J70: =+I70+E70 -> 1625.990244 | X70: 03/04/15 | Z70: 777
A71: 2015-03-05 | B71: 2015-03-05 | D71: 6473000 | E71: 2000 | G71: 810 | I71: 235.5882858 | J71: =+I71+E71 -> 2235.588286 | X71: 03/05/15 | Z71: 810
A72: 2015-03-06 | B72: 2015-03-06 | D72: 6475200 | E72: 2200 | G72: 893 | I72: 259.7288138 | J72: =+I72+E72 -> 2459.728814 | X72: 03/06/15 | Z72: 893
A73: 2015-03-07 | B73: =+A73 -> 2015-03-07 | D73: 6477700 | E73: 2500 | G73: 743 | I73: =+G73*$H$4 -> 216.1013535 | J73: =+I73+E73 -> 2716.101353 | L73: =AVERAGE(J67:J73) -> 2472.794634 | M73: =MAX(J67:J73) -> 3021.336649 | O73: =+'2014'!O74 -> 1933.080343 | P73: =(M73-O73)/O73 -> 0.5629648609 | R73: =AVERAGE(G67:G73) -> 790.5714286 | S73: =+'2014'!R74 -> 703.1428571 | T73: =(R73-S73)/S73 -> 0.1243396993 | X73: 03/07/15 | Z73: 743
A74: 2015-03-08 | B74: 2015-03-08 | D74: 6480700 | E74: 3000 | G74: =+G73+G75/2 -> 1161.5 | I74: 337.8219678 | J74: =+I74+E74 -> 3337.821968
A75: 2015-03-09 | B75: 2015-03-09 | D75: 6483500 | E75: 2800 | G75: 837 | I75: 243.4412286 | J75: =+I75+E75 -> 3043.441229 | X75: 03/09/15 | Z75: 837
A76: 2015-03-10 | B76: 2015-03-10 | D76: 6485600 | E76: 2100 | G76: 813 | I76: 236.460835 | J76: =+I76+E76 -> 2336.460835 | X76: 03/10/15 | Z76: 813
A77: 2015-03-11 | B77: 2015-03-11 | D77: 6487400 | E77: 1800 | G77: 823 | I77: 239.3693323 | J77: =+I77+E77 -> 2039.369332 | X77: 03/11/15 | Z77: 823
A78: 2015-03-12 | B78: 2015-03-12 | D78: 6489400 | E78: 2000 | G78: 935 | I78: 271.9445027 | J78: =+I78+E78 -> 2271.944503 | X78: 03/12/15 | Z78: 935
A79: 2015-03-13 | B79: 2015-03-13 | D79: 6491600 | E79: 2200 | G79: 1125 | I79: 327.2059524 | J79: =+I79+E79 -> 2527.205952 | X79: 03/13/15 | Z79: 1125
A80: 2015-03-14 | B80: 2015-03-14 | D80: 6495100 | E80: 3500 | G80: 825 | I80: 239.9510318 | J80: =+I80+E80 -> 3739.951032 | L80: =AVERAGE(J74:J80) -> 2756.599264 | M80: =MAX(J74:J80) -> 3739.951032 | O80: =+'2014'!O81 -> 2265.987913 | P80: =(M80-O80)/O80 -> 0.6504726309 | R80: =AVERAGE(G74:G80) -> 931.3571429 | S80: =+'2014'!R81 -> 816.2857143 | T80: =(R80-S80)/S80 -> 0.1409695485 | X80: 03/14/15 | Z80: 825
A81: 2015-03-15 | B81: 2015-03-15 | D81: 6498000 | E81: 2900 | G81: 1018 | I81: 296.0850307 | J81: =+I81+E81 -> 3196.085031 | X81: 03/15/15 | Z81: 1018
A82: 2015-03-16 | B82: 2015-03-16 | D82: 6501800 | E82: 3800 | G82: 849 | I82: 246.9314254 | J82: =+I82+E82 -> 4046.931425 | X82: 03/16/15 | Z82: 849
A83: 2015-03-17 | B83: 2015-03-17 | D83: 6503800 | E83: 2000 | G83: 892 | I83: 259.4379641 | J83: =+I83+E83 -> 2259.437964 | X83: 03/17/15 | Z83: 892
A84: 2015-03-18 | B84: 2015-03-18 | D84: 6506200 | E84: 2400 | G84: 885 | I84: 257.4020159 | J84: =+I84+E84 -> 2657.402016 | X84: 03/18/15 | Z84: 885
A85: 2015-03-19 | B85: 2015-03-19 | D85: 6508400 | E85: 2200 | G85: 951 | I85: 276.5980985 | J85: =+I85+E85 -> 2476.598098 | X85: 03/19/15 | Z85: 951
A86: 2015-03-20 | B86: 2015-03-20 | D86: 6511000 | E86: 2600 | G86: 1157 | I86: 336.513144 | J86: =+I86+E86 -> 2936.513144 | X86: 03/20/15 | Z86: 1157
A87: 2015-03-21 | B87: 2015-03-21 | D87: 6514600 | E87: 3600 | G87: 842 | I87: 244.8954773 | J87: =+I87+E87 -> 3844.895477 | L87: =AVERAGE(J81:J87) -> 3059.694737 | M87: =MAX(J81:J87) -> 4046.931425 | O87: =+'2014'!O88 -> 2575.544404 | P87: =(M87-O87)/O87 -> 0.5712916536 | R87: =AVERAGE(G81:G87) -> 942 | S87: =+'2014'!R88 -> 849.1428571 | T87: =(R87-S87)/S87 -> 0.1093539704 | X87: 03/21/15 | Z87: 842
A88: 2015-03-22 | B88: 2015-03-22 | D88: 6518000 | E88: 3400 | G88: 1039 | I88: 302.1928752 | J88: =+I88+E88 -> 3702.192875 | X88: 03/22/15 | Z88: 1039
A89: 2015-03-23 | B89: 2015-03-23 | D89: 6522000 | E89: 4000 | G89: 810 | I89: 235.5882858 | J89: =+I89+E89 -> 4235.588286 | X89: 03/23/15 | Z89: 810
A90: 2015-03-24 | B90: 2015-03-24 | D90: 6523800 | E90: 1800 | G90: 839 | I90: 244.0229281 | J90: =+I90+E90 -> 2044.022928 | X90: 03/24/15 | Z90: 839
A91: 2015-03-25 | B91: 2015-03-25 | D91: 6526100 | E91: 2300 | G91: 941 | I91: 273.6896011 | J91: =+I91+E91 -> 2573.689601 | X91: 03/25/15 | Z91: 941
A92: 2015-03-26 | B92: 2015-03-26 | D92: 6528500 | E92: 2400 | G92: 1006 | I92: 292.5948339 | J92: =+I92+E92 -> 2692.594834 | X92: 03/26/15 | Z92: 1006
A93: 2015-03-27 | B93: 2015-03-27 | D93: 6531200 | E93: 2700 | G93: 1094 | I93: 318.1896106 | J93: =+I93+E93 -> 3018.189611 | X93: 03/27/15 | Z93: 1094
A94: 2015-03-28 | B94: 2015-03-28 | D94: 6535100 | E94: 3900 | G94: 890 | I94: 258.8562646 | J94: =+I94+E94 -> 4158.856265 | L94: =AVERAGE(J88:J94) -> 3203.590628 | M94: =MAX(J88:J94) -> 4235.588286 | O94: =+'2014'!O95 -> 2787.718543 | P94: =(M94-O94)/O94 -> 0.5193744349 | R94: =AVERAGE(G88:G94) -> 945.5714286 | S94: =+'2014'!R95 -> 891 | T94: =(R94-S94)/S94 -> 0.06124739458 | X94: 03/28/15 | Z94: 890
A95: 2015-03-29 | B95: 2015-03-29 | D95: 6538100 | E95: 3000 | G95: 1018 | I95: 296.0850307 | J95: =+I95+E95 -> 3296.085031 | X95: 03/29/15 | Z95: 1018
A96: 2015-03-30 | B96: 2015-03-30 | D96: 6542000 | E96: 3900 | G96: 980 | I96: 285.0327408 | J96: =+I96+E96 -> 4185.032741 | X96: 03/30/15 | Z96: 980
A97: 2015-03-31 | B97: 2015-03-31 | D97: 6544600 | E97: 2600 | G97: 973 | I97: 282.9967926 | J97: =+I97+E97 -> 2882.996793 | X97: 03/31/15 | Z97: 973
A98: 2015-04-01 | B98: 2015-04-01 | D98: 6547000 | E98: =+D98-D97 -> 2400 | G98: 1083 | I98: 314.9902635 | J98: =+I98+E98 -> 2714.990264 | X98: 04/01/15 | Z98: 1083
A99: 2015-04-02 | B99: 2015-04-02 | D99: 6550300 | E99: 3300 | G99: 1204 | I99: 350.1830815 | J99: =+I99+E99 -> 3650.183082 | X99: 04/02/15 | Z99: 1204
A100: 2015-04-03 | B100: 2015-04-03 | D100: 6554000 | E100: 3700 | G100: 1352 | I100: 393.2288424 | J100: =+I100+E100 -> 4093.228842 | X100: 04/03/15 | Z100: 1352
A101: 2015-04-04 | B101: 2015-04-04 | D101: 6559200 | E101: 5200 | G101: 921 | I101: 267.8726064 | J101: =+I101+E101 -> 5467.872606 | L101: =AVERAGE(J95:J101) -> 3755.769908 | M101: =MAX(J95:J101) -> 5467.872606 | O101: =+'2014'!O102 -> 2765.205936 | P101: =(M101-O101)/O101 -> 0.9773835052 | R101: =AVERAGE(G95:G101) -> 1075.857143 | S101: =+'2014'!R102 -> 862.7142857 | T101: =(R101-S101)/S101 -> 0.2470607717 | X101: 04/04/15 | Z101: 921
A102: 2015-04-05 | B102: 2015-04-05 | D102: 6563600 | E102: 4400 | G102: 1240 | I102: 360.653672 | J102: =+I102+E102 -> 4760.653672 | X102: 04/05/15 | Z102: 1240
A103: 2015-04-06 | B103: 2015-04-06 | D103: 6568800 | E103: 5200 | G103: 1261 | I103: 366.7615165 | J103: =+I103+E103 -> 5566.761516 | X103: 04/06/15 | Z103: 1261
A104: 2015-04-07 | B104: 2015-04-07 | D104: 6573100 | E104: 4300 | G104: 933 | I104: 271.3628032 | J104: =+I104+E104 -> 4571.362803 | X104: 04/07/15 | Z104: 933
A105: 2015-04-08 | B105: 2015-04-08 | D105: 6575800 | E105: 2700 | G105: 966 | I105: 280.9608445 | J105: =+I105+E105 -> 2980.960844 | X105: 04/08/15 | Z105: 966
A106: 2015-04-09 | B106: 2015-04-09 | D106: 6578800 | E106: 3000 | G106: 967 | I106: 281.2516942 | J106: =+I106+E106 -> 3281.251694 | X106: 04/09/15 | Z106: 967
A107: 2015-04-10 | B107: 2015-04-10 | D107: 6582300 | E107: 3500 | G107: 1163 | I107: 338.2582424 | J107: =+I107+E107 -> 3838.258242 | X107: 04/10/15 | Z107: 1163
A108: 2015-04-11 | B108: 2015-04-11 | D108: 6587000 | E108: 4700 | G108: 890 | I108: 258.8562646 | J108: =+I108+E108 -> 4958.856265 | L108: =AVERAGE(J102:J108) -> 4279.729291 | M108: =MAX(J102:J108) -> 5566.761516 | O108: =+'2014'!O109 -> 2920.777367 | P108: =(M108-O108)/O108 -> 0.9059177802 | R108: =AVERAGE(G102:G108) -> 1060 | S108: =+'2014'!R109 -> 906.4285714 | T108: =(R108-S108)/S108 -> 0.1694247439 | X108: 04/11/15 | Z108: 890
A109: 2015-04-12 | B109: 2015-04-12 | D109: 6590700 | E109: 3700 | G109: 1060 | I109: 308.3007196 | J109: =+I109+E109 -> 4008.30072 | X109: 04/12/15 | Z109: 1060
A110: 2015-04-13 | B110: 2015-04-13 | D110: 6595700 | E110: 5000 | G110: 878 | I110: 255.3660678 | J110: =+I110+E110 -> 5255.366068 | X110: 04/13/15 | Z110: 878
A111: 2015-04-14 | B111: 2015-04-14 | D111: 6598300 | E111: 2600 | G111: 872 | I111: 253.6209694 | J111: =+I111+E111 -> 2853.620969 | X111: 04/14/15 | Z111: 872
A112: 2015-04-15 | B112: 2015-04-15 | D112: 6601000 | E112: 2700 | G112: 928 | I112: 269.9085545 | J112: =+I112+E112 -> 2969.908555 | X112: 04/15/15 | Z112: 928
A113: 2015-04-16 | B113: 2015-04-16 | D113: 6603800 | E113: 2800 | G113: 885 | I113: 257.4020159 | J113: =+I113+E113 -> 3057.402016 | X113: 04/16/15 | Z113: 885
A114: 2015-04-17 | B114: 2015-04-17 | D114: 6607000 | E114: 3200 | G114: 1159 | I114: 337.0948434 | J114: =+I114+E114 -> 3537.094843 | X114: 04/17/15 | Z114: 1159
A115: 2015-04-18 | B115: 2015-04-18 | D115: 6611800 | E115: 4800 | G115: 842 | I115: 244.8954773 | J115: =+I115+E115 -> 5044.895477 | L115: =AVERAGE(J109:J115) -> 3818.084093 | M115: =MAX(J109:J115) -> 5255.366068 | O115: =+'2014'!O116 -> 3027.640584 | P115: =(M115-O115)/O115 -> 0.7357958853 | R115: =AVERAGE(G109:G115) -> 946.2857143 | S115: =+'2014'!R116 -> 979.1428571 | T115: =(R115-S115)/S115 -> -0.03355704698 | X115: 04/18/15 | Z115: 842
A116: 2015-04-19 | B116: 2015-04-19 | D116: 6615300 | E116: 3500 | G116: 1041 | I116: 302.7745747 | J116: =+I116+E116 -> 3802.774575 | X116: 04/19/15 | Z116: 1041
A117: 2015-04-20 | B117: 2015-04-20 | D117: 6620100 | E117: 4800 | G117: 800 | I117: 232.6797884 | J117: =+I117+E117 -> 5032.679788 | X117: 04/20/15 | Z117: 800
A118: 2015-04-21 | B118: 2015-04-21 | D118: 6622400 | E118: 2300 | G118: 756 | I118: 219.8824 | J118: =+I118+E118 -> 2519.8824 | X118: 04/21/15 | Z118: 756
A119: 2015-04-22 | B119: 2015-04-22 | D119: 6624600 | E119: 2200 | G119: 717 | I119: 208.5392604 | J119: =+I119+E119 -> 2408.53926 | X119: 04/22/15 | Z119: 717
A120: 2015-04-23 | B120: 2015-04-23 | D120: 6626900 | E120: 2300 | G120: 907 | I120: 263.8007101 | J120: =+I120+E120 -> 2563.80071 | X120: 04/23/15 | Z120: 907
A121: 2015-04-24 | B121: 2015-04-24 | D121: 6629700 | E121: 2800 | G121: 1195 | I121: 347.5654339 | J121: =+I121+E121 -> 3147.565434 | X121: 04/24/15 | Z121: 1195
A122: 2015-04-25 | B122: 2015-04-25 | D122: 6633800 | E122: 4100 | G122: 921 | I122: 267.8726064 | J122: =+I122+E122 -> 4367.872606 | L122: =AVERAGE(J116:J122) -> 3406.159253 | M122: =MAX(J116:J122) -> 5032.679788 | O122: =+'2014'!O123 -> 3416.10464 | P122: =(M122-O122)/O122 -> 0.4732217889 | R122: =AVERAGE(G116:G122) -> 905.2857143 | S122: =+'2014'!R123 -> 1037.714286 | T122: =(R122-S122)/S122 -> -0.1276156388 | X122: 04/25/15 | Z122: 921
A123: 2015-04-26 | B123: 2015-04-26 | D123: 6637400 | E123: 3600 | G123: 1193 | I123: 346.9837345 | J123: =+I123+E123 -> 3946.983734 | X123: 04/26/15 | Z123: 1193
A124: 2015-04-27 | B124: 2015-04-27 | D124: 6642800 | E124: 5400 | G124: 955 | I124: 277.7614974 | J124: =+I124+E124 -> 5677.761497 | X124: 04/27/15 | Z124: 955
A125: 2015-04-28 | B125: 2015-04-28 | D125: 6646200 | E125: 3400 | G125: 779 | I125: 226.571944 | J125: =+I125+E125 -> 3626.571944 | X125: 04/28/15 | Z125: 779
A126: 2015-04-29 | B126: 2015-04-29 | D126: 6648700 | E126: 2500 | G126: 858 | I126: 249.5490731 | J126: =+I126+E126 -> 2749.549073 | X126: 04/29/15 | Z126: 858
A127: 2015-04-30 | B127: 2015-04-30 | D127: 6651700 | E127: 3000 | G127: 620 | I127: 180.326836 | J127: =+I127+E127 -> 3180.326836 | X127: 04/30/15 | Z127: 620
A128: 2015-05-01 | B128: 2015-05-01 | D128: 6654200 | E128: =+D128-D127 -> 2500 | G128: 1304 | I128: 379.2680551 | J128: =+I128+E128 -> 2879.268055 | X128: 05/01/15 | Z128: 1304
A129: 2015-05-02 | B129: 2015-05-02 | D129: 6659200 | E129: =+D129-D128 -> 5000 | G129: 956 | I129: 278.0523471 | J129: =+I129+E129 -> 5278.052347 | L129: =AVERAGE(J123:J129) -> 3905.501927 | M129: =MAX(J123:J129) -> 5677.761497 | O129: =+'2014'!O130 -> 3865.345531 | P129: =(M129-O129)/O129 -> 0.4688884736 | R129: =AVERAGE(G123:G129) -> 952.1428571 | S129: =+'2014'!R130 -> 961.4285714 | T129: =(R129-S129)/S129 -> -0.009658246657 | X129: 05/02/15 | Z129: 956
A130: 2015-05-03 | B130: 2015-05-03 | D130: 6663500 | E130: 4300 | G130: 1053 | I130: 306.2647715 | J130: =+I130+E130 -> 4606.264771 | X130: 05/03/15 | Z130: 1053
A131: 2015-05-04 | B131: 2015-05-04 | D131: 6668400 | E131: 4900 | G131: 806 | I131: 234.4248868 | J131: =+I131+E131 -> 5134.424887 | X131: 05/04/15 | Z131: 806
A132: 2015-05-05 | B132: 2015-05-05 | D132: 6671000 | E132: 2600 | G132: 873 | I132: 253.9118191 | J132: =+I132+E132 -> 2853.911819 | X132: 05/05/15 | Z132: 873
A133: 2015-05-06 | B133: 2015-05-06 | D133: 6674000 | E133: 3000 | G133: 921 | I133: 267.8726064 | J133: =+I133+E133 -> 3267.872606 | X133: 05/06/15 | Z133: 921
A134: 2015-05-07 | B134: 2015-05-07 | D134: 6677100 | E134: 3100 | G134: 1088 | I134: 316.4445122 | J134: =+I134+E134 -> 3416.444512 | X134: 05/07/15 | Z134: 1088
A135: 2015-05-08 | B135: 2015-05-08 | D135: 6681100 | E135: 4000 | G135: 1314 | I135: 382.1765524 | J135: =+I135+E135 -> 4382.176552 | X135: 05/08/15 | Z135: 1314
A136: 2015-05-09 | B136: 2015-05-09 | D136: 6687700 | E136: 6600 | G136: 1047 | I136: 304.5196731 | J136: =+I136+E136 -> 6904.519673 | L136: =AVERAGE(J130:J136) -> 4366.516403 | M136: =MAX(J130:J136) -> 6904.519673 | O136: =+'2014'!O137 -> 3585.296986 | P136: =(M136-O136)/O136 -> 0.9257873755 | R136: =AVERAGE(G130:G136) -> 1014.571429 | S136: =+'2014'!R137 -> 1079.142857 | T136: =(R136-S136)/S136 -> -0.05983584856 | X136: 05/09/15 | Z136: 1047
A137: 2015-05-10 | B137: =+A137 -> 2015-05-10 | D137: 6691100 | E137: 3400 | G137: 1135 | I137: =+G137*$H$4 -> 330.1144498 | J137: =+I137+E137 -> 3730.11445 | X137: 05/10/15 | Z137: 1135
A138: 2015-05-11 | B138: 2015-05-11 | D138: 6696300 | E138: 5200 | G138: 961 | I138: 279.5065958 | J138: =+I138+E138 -> 5479.506596 | X138: 05/11/15 | Z138: 961
A139: 2015-05-12 | B139: 2015-05-12 | D139: 6699700 | E139: 3400 | G139: 648 | I139: 188.4706286 | J139: =+I139+E139 -> 3588.470629 | X139: 05/12/15 | Z139: 648
A140: 2015-05-13 | B140: 2015-05-13 | D140: 6701600 | E140: 1900 | G140: 201 | I140: 58.46079684 | J140: =+I140+E140 -> 1958.460797 | X140: 05/13/15 | Z140: 201
A141: 2015-05-14 | B141: 2015-05-14 | D141: 6702600 | E141: 1000 | G141: 895 | I141: 260.3105133 | J141: =+I141+E141 -> 1260.310513 | X141: 05/14/15 | Z141: 895
A142: 2015-05-15 | B142: 2015-05-15 | D142: 6706200 | E142: 3600 | G142: 1311 | I142: 381.3040032 | J142: =+I142+E142 -> 3981.304003 | X142: 05/15/15 | Z142: 1311
A143: 2015-05-16 | B143: 2015-05-16 | D143: 6712000 | E143: 5800 | G143: 1067 | I143: 310.3366678 | J143: =+I143+E143 -> 6110.336668 | L143: =AVERAGE(J137:J143) -> 3729.786236 | M143: =MAX(J137:J143) -> 6110.336668 | O143: =+'2014'!O144 -> 3800.594845 | P143: =(M143-O143)/O143 -> 0.6077316624 | R143: =AVERAGE(G137:G143) -> 888.2857143 | S143: =+'2014'!R144 -> 1180.857143 | T143: =(R143-S143)/S143 -> -0.2477619163 | X143: 05/16/15 | Z143: 1067
A144: 2015-05-17 | B144: 2015-05-17 | D144: 6717000 | E144: 5000 | G144: 1185 | I144: 344.6569366 | J144: =+I144+E144 -> 5344.656937 | X144: 05/17/15 | Z144: 1185
A145: 2015-05-18 | B145: 2015-05-18 | D145: 6722500 | E145: 5500 | G145: 255 | I145: 74.16668255 | J145: =+I145+E145 -> 5574.166683 | X145: 05/18/15 | Z145: 255
A146: 2015-05-19 | B146: 2015-05-19 | D146: 6723400 | E146: 900 | G146: 467 | I146: 135.8268265 | J146: =+I146+E146 -> 1035.826826 | X146: 05/19/15 | Z146: 467
A147: 2015-05-20 | B147: 2015-05-20 | D147: 6725000 | E147: 1600 | G147: 855 | I147: 248.6765239 | J147: =+I147+E147 -> 1848.676524 | X147: 05/20/15 | Z147: 855
A148: 2015-05-21 | B148: 2015-05-21 | D148: 6728000 | E148: 3000 | G148: 1240 | I148: 360.653672 | J148: =+I148+E148 -> 3360.653672 | X148: 05/21/15 | Z148: 1240
A149: 2015-05-22 | B149: 2015-05-22 | D149: 6732600 | E149: 4600 | G149: 1812 | I149: 527.0197207 | J149: =+I149+E149 -> 5127.019721 | X149: 05/22/15 | Z149: 1812
A150: 2015-05-23 | B150: 2015-05-23 | D150: 6741700 | E150: 9100 | G150: 1292 | I150: 375.7778583 | J150: =+I150+E150 -> 9475.777858 | L150: =AVERAGE(J144:J150) -> 4538.111174 | M150: =MAX(J144:J150) -> 9475.777858 | O150: =+'2014'!O151 -> 4295.922117 | P150: =(M150-O150)/O150 -> 1.205761091 | R150: =AVERAGE(G144:G150) -> 1015.142857 | S150: =+'2014'!R151 -> 1312.142857 | T150: =(R150-S150)/S150 -> -0.2263473054 | X150: 05/23/15 | Z150: 1292
A151: 2015-05-24 | B151: 2015-05-24 | D151: 6748100 | E151: 6400 | G151: 899 | I151: 261.4739122 | J151: =+I151+E151 -> 6661.473912 | X151: 05/24/15 | Z151: 899
A152: 2015-05-25 | B152: 2015-05-25 | D152: 6752700 | E152: 4600 | G152: 1303 | I152: 378.9772054 | J152: =+I152+E152 -> 4978.977205 | X152: 05/25/15 | Z152: 1303
A153: 2015-05-26 | B153: 2015-05-26 | D153: 6759500 | E153: 6800 | G153: 1089 | I153: 316.735362 | J153: =+I153+E153 -> 7116.735362 | X153: 05/26/15 | Z153: 1089
A154: 2015-05-27 | B154: 2015-05-27 | D154: 6763300 | E154: 3800 | G154: 1015 | I154: 295.2124815 | J154: =+I154+E154 -> 4095.212482 | X154: 05/27/15 | Z154: 1015
A155: 2015-05-28 | B155: 2015-05-28 | D155: 6766800 | E155: 3500 | G155: 1078 | I155: 313.5360149 | J155: =+I155+E155 -> 3813.536015 | X155: 05/28/15 | Z155: 1078
A156: 2015-05-29 | B156: 2015-05-29 | D156: 6770600 | E156: 3800 | G156: 1374 | I156: 399.6275366 | J156: =+I156+E156 -> 4199.627537 | X156: 05/29/15 | Z156: 1374
A157: 2015-05-30 | B157: 2015-05-30 | D157: 6776700 | E157: 6100 | G157: 1078 | I157: 313.5360149 | J157: =+I157+E157 -> 6413.536015 | L157: =AVERAGE(J151:J157) -> 5325.585504 | M157: =MAX(J151:J157) -> 7116.735362 | O157: =+'2014'!O158 -> 4111.307262 | P157: =(M157-O157)/O157 -> 0.7310151998 | R157: =AVERAGE(G151:G157) -> 1119.428571 | S157: =+'2014'!R158 -> 1168.571429 | T157: =(R157-S157)/S157 -> -0.04205378973 | X157: 05/30/15 | Z157: 1078
A158: 2015-05-31 | B158: 2015-05-31 | D158: 6781400 | E158: 4700 | G158: 1183 | I158: 344.0752371 | J158: =+I158+E158 -> 5044.075237 | X158: 05/31/15 | Z158: 1183
A159: 2015-06-01 | B159: 2015-06-01 | D159: 6787000 | E159: 5600 | G159: 1226 | I159: 356.5817757 | J159: =+I159+E159 -> 5956.581776 | X159: 06/01/15 | Z159: 1226
A160: 2015-06-02 | B160: 2015-06-02 | D160: 6791200 | E160: 4200 | G160: 1032 | I160: 300.156927 | J160: =+I160+E160 -> 4500.156927 | X160: 06/02/15 | Z160: 1032
A161: 2015-06-03 | B161: 2015-06-03 | D161: 6795000 | E161: 3800 | G161: 1032 | I161: 300.156927 | J161: =+I161+E161 -> 4100.156927 | X161: 06/03/15 | Z161: 1032
A162: 2015-06-04 | B162: 2015-06-04 | D162: 6798800 | E162: 3800 | G162: 1241 | I162: 360.9445218 | J162: =+I162+E162 -> 4160.944522 | X162: 06/04/15 | Z162: 1241
A163: 2015-06-05 | B163: 2015-06-05 | D163: 6803600 | E163: 4800 | G163: 1594 | I163: 463.6144784 | J163: =+I163+E163 -> 5263.614478 | X163: 06/05/15 | Z163: 1594
A164: 2015-06-06 | B164: 2015-06-06 | D164: 6811100 | E164: 7500 | G164: 1385 | I164: 402.8268837 | J164: =+I164+E164 -> 7902.826884 | L164: =AVERAGE(J158:J164) -> 5275.479536 | M164: =MAX(J158:J164) -> 7902.826884 | O164: =+'2014'!O165 -> 4227.013148 | P164: =(M164-O164)/O164 -> 0.8696007339 | R164: =AVERAGE(G158:G164) -> 1241.857143 | S164: =+'2014'!R165 -> 1222.571429 | T164: =(R164-S164)/S164 -> 0.01577471372 | X164: 06/06/15 | Z164: 1385
A165: 2015-06-07 | B165: 2015-06-07 | D165: 6817200 | E165: 6100 | G165: 1358 | I165: 394.9739408 | J165: =+I165+E165 -> 6494.973941 | X165: 06/07/15 | Z165: 1358
A166: 2015-06-08 | B166: 2015-06-08 | D166: 6823700 | E166: 6500 | G166: 1192 | I166: 346.6928847 | J166: =+I166+E166 -> 6846.692885 | X166: 06/08/15 | Z166: 1192
A167: 2015-06-09 | B167: 2015-06-09 | D167: 6828100 | E167: 4400 | G167: 1067 | I167: 310.3366678 | J167: =+I167+E167 -> 4710.336668 | X167: 06/09/15 | Z167: 1067
A168: 2015-06-10 | B168: 2015-06-10 | D168: 6832200 | E168: 4100 | G168: 1267 | I168: 368.5066149 | J168: =+I168+E168 -> 4468.506615 | X168: 06/10/15 | Z168: 1267
A169: 2015-06-11 | B169: 2015-06-11 | D169: 6836600 | E169: 4400 | G169: 1226 | I169: 356.5817757 | J169: =+I169+E169 -> 4756.581776 | X169: 06/11/15 | Z169: 1226
A170: 2015-06-12 | B170: 2015-06-12 | D170: 6841000 | E170: 4400 | G170: 1729 | I170: 502.8791927 | J170: =+I170+E170 -> 4902.879193 | X170: 06/12/15 | Z170: 1729
A171: 2015-06-13 | B171: 2015-06-13 | D171: 6848000 | E171: 7000 | G171: 1431 | I171: 416.2059715 | J171: =+I171+E171 -> 7416.205972 | L171: =AVERAGE(J165:J171) -> 5656.596721 | M171: =MAX(J165:J171) -> 7416.205972 | O171: =+'2014'!O172 -> 4510.747981 | P171: =(M171-O171)/O171 -> 0.6441188917 | R171: =AVERAGE(G165:G171) -> 1324.285714 | S171: =+'2014'!R172 -> 1314 | T171: =(R171-S171)/S171 -> 0.00782778865 | X171: 06/13/15 | Z171: 1431
A172: 2015-06-14 | B172: 2015-06-14 | D172: 6855300 | E172: 7300 | G172: 1517 | I172: 441.2190488 | J172: =+I172+E172 -> 7741.219049 | X172: 06/14/15 | Z172: 1517
A173: 2015-06-15 | B173: 2015-06-15 | D173: 6863000 | E173: 7700 | G173: 1356 | I173: 394.3922413 | J173: =+I173+E173 -> 8094.392241 | X173: 06/15/15 | Z173: 1356
A174: 2015-06-16 | B174: 2015-06-16 | D174: 6868500 | E174: 5500 | G174: 1226 | I174: 356.5817757 | J174: =+I174+E174 -> 5856.581776 | X174: 06/16/15 | Z174: 1226
A175: 2015-06-17 | B175: 2015-06-17 | D175: 6873200 | E175: 4700 | G175: 1299 | I175: 377.8138064 | J175: =+I175+E175 -> 5077.813806 | X175: 06/17/15 | Z175: 1299
A176: 2015-06-18 | B176: 2015-06-18 | D176: 6878000 | E176: 4800 | G176: 1420 | I176: 413.0066244 | J176: =+I176+E176 -> 5213.006624 | X176: 06/18/15 | Z176: 1420
A177: 2015-06-19 | B177: 2015-06-19 | D177: 6883600 | E177: 5600 | G177: 1731 | I177: 503.4608922 | J177: =+I177+E177 -> 6103.460892 | X177: 06/19/15 | Z177: 1731
A178: 2015-06-20 | B178: 2015-06-20 | D178: 6892100 | E178: 8500 | G178: 1414 | I178: 411.261526 | J178: =+I178+E178 -> 8911.261526 | L178: =AVERAGE(J172:J178) -> 6713.962274 | M178: =MAX(J172:J178) -> 8911.261526 | O178: =+'2014'!O179 -> 5120.270395 | P178: =(M178-O178)/O178 -> 0.7403888542 | R178: =AVERAGE(G172:G178) -> 1423.285714 | S178: =+'2014'!R179 -> 1395.857143 | T178: =(R178-S178)/S178 -> 0.01964998465 | X178: 06/20/15 | Z178: 1414
A179: 2015-06-21 | B179: 2015-06-21 | D179: 6899300 | E179: 7200 | G179: 1457 | I179: 423.7680646 | J179: =+I179+E179 -> 7623.768065 | X179: 06/21/15 | Z179: 1457
A180: 2015-06-22 | B180: 2015-06-22 | D180: 6906700 | E180: 7400 | G180: 1321 | I180: 384.2125006 | J180: =+I180+E180 -> 7784.212501 | X180: 06/22/15 | Z180: 1321
A181: 2015-06-23 | B181: 2015-06-23 | D181: 6911700 | E181: 5000 | G181: 1175 | I181: 341.7484392 | J181: =+I181+E181 -> 5341.748439 | X181: 06/23/15 | Z181: 1175
A182: 2015-06-24 | B182: 2015-06-24 | D182: 6916100 | E182: 4400 | G182: 1238 | I182: 360.0719726 | J182: =+I182+E182 -> 4760.071973 | X182: 06/24/15 | Z182: 1238
A183: 2015-06-25 | B183: 2015-06-25 | D183: 6921400 | E183: 5300 | G183: 1469 | I183: 427.2582615 | J183: =+I183+E183 -> 5727.258261 | X183: 06/25/15 | Z183: 1469
A184: 2015-06-26 | B184: 2015-06-26 | D184: 6927400 | E184: 6000 | G184: 1780 | I184: 517.7125292 | J184: =+I184+E184 -> 6517.712529 | X184: 06/26/15 | Z184: 1780
A185: 2015-06-27 | B185: 2015-06-27 | D185: 6936000 | E185: 8600 | G185: 1535 | I185: 446.454344 | J185: =+I185+E185 -> 9046.454344 | L185: =AVERAGE(J179:J185) -> 6685.889445 | M185: =MAX(J179:J185) -> 9046.454344 | O185: =+'2014'!O186 -> 5639.923527 | P185: =(M185-O185)/O185 -> 0.6040030154 | R185: =AVERAGE(G179:G185) -> 1425 | S185: =+'2014'!R186 -> 1463.428571 | T185: =(R185-S185)/S185 -> -0.02625927372 | X185: 06/27/15 | Z185: 1535
A186: 2015-06-28 | B186: 2015-06-28 | D186: 6946000 | E186: 10000 | G186: 1668 | I186: 485.1373588 | J186: =+I186+E186 -> 10485.13736 | X186: 06/28/15 | Z186: 1668
A187: 2015-06-29 | B187: 2015-06-29 | D187: 6954100 | E187: 8100 | G187: 1477 | I187: 429.5850593 | J187: =+I187+E187 -> 8529.585059 | X187: 06/29/15 | Z187: 1477
A188: 2015-06-30 | B188: 2015-06-30 | D188: 6960000 | E188: 5900 | G188: 1247 | I188: 362.6896202 | J188: =+I188+E188 -> 6262.68962 | X188: 06/30/15 | Z188: 1247
A189: 2015-07-01 | B189: 2015-07-01 | D189: 6965400 | E189: 5400 | G189: 1467 | I189: 426.676562 | J189: =+I189+E189 -> 5826.676562 | X189: 07/01/15 | Z189: 1467
A190: 2015-07-02 | B190: 2015-07-02 | D190: 6972000 | E190: 6600 | G190: 1901 | I190: 552.9053472 | J190: =+I190+E190 -> 7152.905347 | X190: 07/02/15 | Z190: 1901
A191: 2015-07-03 | B191: 2015-07-03 | D191: 6982100 | E191: 10100 | G191: 1971 | I191: 573.2648287 | J191: =+I191+E191 -> 10673.26483 | X191: 07/03/15 | Z191: 1971
A192: 2015-07-04 | B192: 2015-07-04 | D192: 6993700 | E192: 11600 | G192: 1033 | I192: 300.4477768 | J192: =+I192+E192 -> 11900.44778 | L192: =AVERAGE(J186:J192) -> 8690.100936 | M192: =MAX(J186:J192) -> 11900.44778 | O192: =+'2014'!O193 -> 6517.667693 | P192: =(M192-O192)/O192 -> 0.8258751961 | R192: =AVERAGE(G186:G192) -> 1537.714286 | S192: =+'2014'!R193 -> 1485.142857 | T192: =(R192-S192)/S192 -> 0.03539823009 | X192: 07/04/15 | Z192: 1033
A193: 2015-07-05 | B193: 2015-07-05 | D193: 6999600 | E193: =+D193-D192 -> 5900 | G193: 1568 | I193: 456.0523853 | J193: =+I193+E193 -> 6356.052385 | X193: 07/05/15 | Z193: 1568
A194: 2015-07-06 | B194: 2015-07-06 | D194: 7008400 | E194: 8800 | G194: 1403 | I194: 408.0621789 | J194: =+I194+E194 -> 9208.062179 | X194: 07/06/15 | Z194: 1403
A195: 2015-07-07 | B195: 2015-07-07 | D195: 7014500 | E195: 6100 | G195: 1370 | I195: 398.4641376 | J195: =+I195+E195 -> 6498.464138 | X195: 07/07/15 | Z195: 1370
A196: 2015-07-08 | B196: 2015-07-08 | D196: 7020600 | E196: 6100 | G196: 1319 | I196: 383.6308011 | J196: =+I196+E196 -> 6483.630801 | X196: 07/08/15 | Z196: 1319
A197: 2015-07-09 | B197: 2015-07-09 | D197: 7026600 | E197: 6000 | G197: 1441 | I197: 419.1144689 | J197: =+I197+E197 -> 6419.114469 | X197: 07/09/15 | Z197: 1441
A198: 2015-07-10 | B198: 2015-07-10 | D198: 7033200 | E198: 6600 | G198: 1762 | I198: 512.477234 | J198: =+I198+E198 -> 7112.477234 | X198: 07/10/15 | Z198: 1762
A199: 2015-07-11 | B199: 2015-07-11 | D199: 7043100 | E199: 9900 | G199: 1508 | I199: 438.6014011 | J199: =+I199+E199 -> 10338.6014 | L199: =AVERAGE(J193:J199) -> 7488.057515 | M199: =MAX(J193:J199) -> 10338.6014 | O199: =+'2014'!O200 -> 5510.728849 | P199: =(M199-O199)/O199 -> 0.8760860286 | R199: =AVERAGE(G193:G199) -> 1481.571429 | S199: =+'2014'!R200 -> 1461.285714 | T199: =(R199-S199)/S199 -> 0.01388209991 | X199: 07/11/15 | Z199: 1508
A200: 2015-07-12 | B200: 2015-07-12 | D200: 7051800 | E200: 8700 | G200: 1539 | I200: 447.6177429 | J200: =+I200+E200 -> 9147.617743 | X200: 07/12/15 | Z200: 1539
A201: 2015-07-13 | B201: =+A201 -> 2015-07-13 | D201: 7060600 | E201: 8800 | G201: 1299 | I201: =+G201*$H$4 -> 377.8138064 | J201: =+I201+E201 -> 9177.813806 | X201: 07/13/15 | Z201: 1299
... 171 more rows

Sheet Plan
A1: Rest Area 10
A2: Mound System Rotation Plan
A4: Rev | B4: 2015-08-18
M5: Attenuation Tank Pumps | P5: Mound Pumps
B6: From | C6: To | D6: # Active Mounds | F6: Mound 1 | G6: Mound 4 | H6: Mound 5 | I6: Mound 6 | J6: Mound 2 | K6: Mound 3 | M6: Cycle Time (min) | N6: Run Time (min) | O6: Pump rate (gpm) | P6: Cycle Time (min) | Q6: Run Time (sec x 10) | R6: Pump rate (gpm)
A7: W | B7: 2014-10-15 | C7: 2015-05-15 | D7: 3 | F7: Off | G7: Off | H7: Off | M7: =+'2014'!AG18 -> 40 | N7: =+'2014'!AJ18 -> 4 | O7: =+Z15 -> 21 | P7: =+'2014'!X18 -> 60 | Q7: =+'2014'!AA18*600 -> 1500 | R7: ='2014'!AA3 -> 94.81111577
A8: S | B8: =+C7 -> 2015-05-15 | C8: 2015-06-15 | D8: 5 | F8: Off | M8: =+'2014'!AG151 -> 24 | N8: =+'2014'!AJ151 -> 4 | O8: =+O7 -> 21 | P8: =+'2014'!X151 -> 45 | Q8: =+Q7 -> 1500 | R8: =+R7 -> 94.81111577
A9: S-Peak | B9: 2015-06-15 | C9: 2015-10-15 | D9: 6 | M9: =+'2014'!AG152 -> 20 | N9: =+'2014'!AJ152 -> 6 | O9: =+O8 -> 21 | P9: =+'2014'!X152 -> 38 | Q9: =+Q8 -> 1500 | R9: =+R8 -> 94.81111577 | T9: =+M9-N9 -> 14 | U9: min rest
A10: W | B10: =+C9 -> 2015-10-15 | C10: =+B10+213 -> 2016-05-15 | D10: 3 | F10: Off | G10: Off | H10: Off | M10: Recalibrate Pumps
A11: S | B11: 2016-05-15 | C11: =+B11+153 -> 2016-10-15 | D11: 5 | G11: Off
A12: W | B12: 2016-10-15 | C12: =+B12+212 -> 2017-05-15 | D12: 3 | G12: Off | H12: Off | I12: Off
A13: S | B13: 2017-05-15 | C13: =+B13+153 -> 2017-10-15 | D13: 5 | H13: Off
A14: W | B14: 2017-10-15 | C14: =+B14+212 -> 2018-05-15 | D14: 3 | H14: Off | I14: Off | J14: Off | T14: Attenuation tank Pumps | Z14: Pump rate
A15: S | B15: 2018-05-15 | C15: =+B15+153 -> 2018-10-15 | D15: 5 | I15: Off | T15: Reprogrammed July 31, 2015 | Z15: 21 | AA15: gal/min
A16: W | B16: 2018-10-15 | C16: =+B16+212 -> 2019-05-15 | D16: 3 | I16: Off | J16: Off | K16: Off | U16: Target
A17: S | B17: 2019-05-15 | C17: =+B17+153 -> 2019-10-15 | D17: 5 | J17: Off | U17: Daily | V17: Run | W17: Cycle | X17: Cycles | Z17: Cycle | AA17: Daily
A18: W | B18: 2019-10-15 | C18: =+B18+212 -> 2020-05-14 | D18: 3 | F18: Off | J18: Off | K18: Off | U18: Vol | V18: Time | W18: Time | X18: per day | Z18: vol (gal) | AA18: Vol (gal)
A19: S | B19: 2020-05-14 | C19: =+B19+153 -> 2020-10-14 | D19: 5 | K19: Off | T19: >>>> | U19: 9000 | V19: 6 | W19: 20 | X19: =24*60/W19 -> 72 | Z19: =V19*Z$15 -> 126 | AA19: =Z19*X19 -> 9072
A20: W | B20: 2020-10-14 | C20: =+B20+212 -> 2021-05-14 | D20: 3 | F20: Off | G20: Off | K20: Off | U20: 9000 | V20: 5 | W20: 100 | X20: =24*60/W20 -> 14.4 | Z20: =V20*Z$15 -> 105 | AA20: =Z20*X20 -> 1512
A21: S | B21: 2021-05-14 | C21: =+B21+153 -> 2021-10-14 | D21: 5 | F21: Off | U21: 9000 | V21: 5 | W21: 100 | X21: =24*60/W21 -> 14.4 | Z21: =V21*Z$15 -> 105 | AA21: =Z21*X21 -> 1512
A22: W | B22: 2021-10-14 | C22: =+B22+212 -> 2022-05-14 | D22: 3 | F22: Off | G22: Off | H22: Off
A23: S | B23: 2022-05-14 | C23: =+B23+153 -> 2022-10-14 | D23: 5 | G23: Off | T23: Mound pumps
A24: W | B24: 2022-10-14 | C24: =+B24+212 -> 2023-05-14 | D24: 3 | G24: Off | H24: Off | I24: Off | T24: Reprogrammed Aug 18, 2015
A25: S | B25: 2023-05-14 | C25: =+B25+153 -> 2023-10-14 | D25: 5 | H25: Off | U25: Pump Rate | V25: 89 | W25: gal/min
A26: W | B26: 2023-10-14 | C26: =+B26+212 -> 2024-05-13 | D26: 3 | H26: Off | I26: Off | J26: Off | U26: Cycle | V26: 20 | W26: min
A27: S | B27: 2024-05-13 | C27: =+B27+153 -> 2024-10-13 | D27: 5 | I27: Off | U27: Stnd cycle | V27: 150 | W27: sec
A28: W | B28: 2024-10-13 | C28: =+B28+212 -> 2025-05-13 | D28: 3 | I28: Off | J28: Off | K28: Off
A29: S | B29: 2025-05-13 | C29: =+B29+153 -> 2025-10-13 | D29: 5 | J29: Off | U29: % of 150 sec | V29: Vol/cycle | W29: Cycles/day | X29: Vol
A30: W | B30: 2025-10-13 | C30: =+B30+212 -> 2026-05-13 | D30: 3 | F30: Off | J30: Off | K30: Off | T30: M1 | U30: 0.55 | V30: =U30*V$25*V$27/60 -> 122.375 | W30: =24*60/(V$26*6) -> 12 | X30: =V30*W30 -> 1468.5
T31: M2 | U31: 0.65 | V31: 144.625 | W31: 12 | X31: =V31*W31 -> 1735.5
T32: M3 | U32: 0.65 | V32: 144.625 | W32: 12 | X32: 1735.5
T33: M4 | U33: 0.55 | V33: 122.375 | W33: 12 | X33: 1468.5
M34: Attenuation Tank Pumps | P34: Mound Pumps | T34: M5 | U34: 0.55 | V34: 122.375 | W34: 12 | X34: 1468.5
M35: Cycles/day | N35: Vol/cycle (gal) | O35: Vol (gal/day) | P35: Cycles/day | Q35: Vol/cycle (gal) | R35: Vol (gal/day) | T35: M6 | U35: 0.55 | V35: 122.375 | W35: 12 | X35: 1468.5
M36: =(24*60)/M7 -> 36 | N36: =+N7*O7 -> 84 | O36: =+N36*M36 -> 3024 | P36: =(24*60)/P7 -> 24 | Q36: =+Q7*R7/600 -> 237.0277894 | R36: =+Q36*P36 -> 5688.666946 | W36: Total | X36: =SUM(X30:X35) -> 9345 | Y36: gal
M37: =(24*60)/M8 -> 60 | N37: =+N8*O8 -> 84 | O37: =+N37*M37 -> 5040 | P37: =(24*60)/P8 -> 32 | Q37: =+Q8*R8/600 -> 237.0277894 | R37: =+Q37*P37 -> 7584.889262
